College_Name,Check_Number,Payee,Date,Amount,Funding_Source,Purpose,ID,Fund_Code,Acct_Code,CheckTotal
J. F. Drake State CC & TC,10016026,Alabama Community College System ,10/10/2023,230696.19,Unrestricted Shared Services,Institutional Use - OOS,A01370406,110100,751000,230696.19
J. F. Drake State CC & TC,10016027,Alabama Flag & Banner Inc ,10/10/2023,6388.9,Unrestricted Shared Services,Maintenance & Repairs  - OOS,A01349856,110100,751100,6388.9
J. F. Drake State CC & TC,10016028,Alabama Media ,10/10/2023,150,Unrestricted Shared Services,Advertising & Promotions - OOS,A01352303,110100,750100,150
J. F. Drake State CC & TC,10016029,Armstrong Relocation Company Huntsville LLC ,10/10/2023,65,Unexpended Plant Shared Services,Short-Term Building Rentals - OOS,A02436480,910100,751500,65
J. F. Drake State CC & TC,10016030,Cool Stuff by Austin ,10/10/2023,400,Unrestricted Shared Services,Other Professional Fees - PS,A01373729,110100,731600,400
J. F. Drake State CC & TC,10016031,Dynamic Security Inc ,10/10/2023,3733.5,Unrestricted Shared Services,Other Contractual Services - PS,A01352847,110100,731400,3733.5
J. F. Drake State CC & TC,10016032,Fite Construction Co LLC ,10/10/2023,152844.12,Unexpended Plant Shared Services2,Construction in Progress - CE,A02520278,910101,790900,152844.12
J. F. Drake State CC & TC,10016033,Hampton Darlene,10/10/2023,97.5,Unrestricted Shared Services,Other Travel Expenses - IS,A00199983,110100,710800,97.5
J. F. Drake State CC & TC,10016034,Parchment LLC ,10/10/2023,72.3,Unrestricted Shared Services,Transcript Expense,A01350771,110100,751017,72.3
J. F. Drake State CC & TC,10016035,Red Sage Communications Inc ,10/10/2023,3989.25,Unrestricted Shared Services,Other Contractual Services - PS,A02241195,110100,731400,3989.25
J. F. Drake State CC & TC,10016036,Sims Patricia,10/10/2023,130.3,Unrestricted Shared Services,Other Travel Expenses - OS,A01346009,110100,715600,351.8
J. F. Drake State CC & TC,10016036,Sims Patricia,10/10/2023,221.5,Unrestricted Shared Services,Conus (meals) - OS,A01346009,110100,715200,351.8
J. F. Drake State CC & TC,10016037,Thomas Electric Inc ,10/10/2023,7648.75,Renewal & Replacement Shared Svcs,Other Contractual Services - PS,A01356752,920100,731400,7648.75
J. F. Drake State CC & TC,10016038,Thompson Tractor Company ,10/10/2023,1201.09,Unrestricted Shared Services,Short-Term Equipment Rentals - OOS,A01350900,110100,751600,1201.09
J. F. Drake State CC & TC,10016039,Walter Craig LLC ,10/10/2023,1212.66,Unrestricted Shared Services,Materials and Supplies - MS,A01352974,110100,720500,1212.66
J. F. Drake State CC & TC,10016040,Waste Management ,10/10/2023,735.03,Unrestricted Shared Services,Waste Disposal - UC,A01349513,110100,740700,735.03
J. F. Drake State CC & TC,10016041,Wells Printing Company Inc ,10/10/2023,507.51,Unrestricted Shared Services,Grants  Awards and Prizes - OOS,A01350075,110100,750800,8108.13
J. F. Drake State CC & TC,10016041,Wells Printing Company Inc ,10/10/2023,560,Unrestricted Shared Services,Printing and Binding - OOS,A01350075,110100,751300,8108.13
J. F. Drake State CC & TC,10016041,Wells Printing Company Inc ,10/10/2023,833.93,Unrestricted Shared Services,Advertising & Promotions - OOS,A01350075,110100,750100,8108.13
J. F. Drake State CC & TC,10016041,Wells Printing Company Inc ,10/10/2023,6206.69,Unrestricted Shared Services,Materials and Supplies - MS,A01350075,110100,720500,8108.13
J. F. Drake State CC & TC,10016042,Xerox Corporation ,10/10/2023,20.89,Unrestricted Shared Services,Technology - non capitalized - MS,A00010379,110100,720700,45.96
J. F. Drake State CC & TC,10016042,Xerox Corporation ,10/10/2023,25.07,Unrestricted Shared Services,Maintenance & Repairs  - OOS,A00010379,110100,751100,45.96
J. F. Drake State CC & TC,10016043,Gresco Supply Inc. ,10/12/2023,20073.8,Unrestricted Shared Services,Materials and Supplies - MS,A02504942,110100,720500,20073.8
J. F. Drake State CC & TC,10016044,Hampton Darlene,10/12/2023,106.25,Unrestricted Shared Services,Other Travel Expenses - IS,A00199983,110100,710800,106.25
J. F. Drake State CC & TC,10016045,Hand Arendall Harrison Sale LLC ,10/12/2023,630,Unrestricted Shared Services,Legal Services - PS,A00010175,110100,731200,630
J. F. Drake State CC & TC,10016046,Huntsville Utilities ,10/12/2023,57,Unrestricted Shared Services,Gas & Heating Fuel - UC,A01361021,110100,740300,17307.43
J. F. Drake State CC & TC,10016046,Huntsville Utilities ,10/12/2023,803.38,Unrestricted Shared Services,Water & Sewer - UC,A01361021,110100,740600,17307.43
J. F. Drake State CC & TC,10016046,Huntsville Utilities ,10/12/2023,16447.05,Unrestricted Shared Services,Electricity - UC,A01361021,110100,740200,17307.43
J. F. Drake State CC & TC,10016047,Lynn Adelina,10/12/2023,400,Unrestricted Shared Services,Other Contractual Services - PS,A02517628,110100,731400,400
J. F. Drake State CC & TC,10016048,NAFECO ,10/12/2023,70.7,Unrestricted Shared Services,Materials and Supplies - MS,A01349947,110100,720500,70.7
J. F. Drake State CC & TC,10016049,Parrish Jimmy,10/12/2023,720,Unrestricted Shared Services,Other Contractual Services - PS,A00076261,110100,731400,720
J. F. Drake State CC & TC,10016050,RP Media ,10/12/2023,3302.35,Unrestricted Shared Services,Advertising & Promotions - OOS,A01390666,110100,750100,3302.35
J. F. Drake State CC & TC,10016051,Safety Kleen Systems Inc ,10/12/2023,235.74,Unrestricted Shared Services,Waste Disposal - UC,A01350341,110100,740700,235.74
J. F. Drake State CC & TC,10016052,State of Alabama ,10/12/2023,70179,Unrestricted Shared Services,Insurance and Bonding - PS,A00010262,110100,730900,70179
J. F. Drake State CC & TC,10016053,Hendon + Huckestein Architects PC ,10/13/2023,1500,Unexpended Plant Shared Services,Other Professional Fees - PS,A02446883,910100,731600,1500
J. F. Drake State CC & TC,10016054,North Alabama Homebuilding Academy ,10/13/2023,4086.61,Unrestricted Shared Services,Support Salaries - SW,A02278709,110100,613000,4086.61
J. F. Drake State CC & TC,10016055,Bell Angela,10/17/2023,99.13,Unrestricted Shared Services,Culinary Consumables,A00196556,110100,720200,99.13
J. F. Drake State CC & TC,10016056,Better Business Bureau of North Alabama Inc ,10/17/2023,535,Unrestricted Shared Services,Memberships - PS,A01356751,110100,731300,535
J. F. Drake State CC & TC,10016057,FedEx ,10/19/2023,8,Unrestricted Shared Services,Freight - OOS,A00010219,110100,750600,8
J. F. Drake State CC & TC,10016058,Huntsville Business Journal ,10/19/2023,800,Unrestricted Shared Services,Advertising & Promotions - OOS,A02374995,110100,750100,800
J. F. Drake State CC & TC,10016059,Mullins Special Occasions ,10/19/2023,519,Unrestricted Shared Services,Short-Term Equipment Rentals - OOS,A01365313,110100,751600,519
J. F. Drake State CC & TC,10016060,PODS Enterprises Inc ,10/19/2023,1630.14,Unexpended Plant Shared Services,Short-Term Equipment Rentals - OOS,A01368741,910100,751600,1630.14
J. F. Drake State CC & TC,10016061,Red Sage Communications Inc ,10/19/2023,3061.2,Unrestricted Shared Services,Other Contractual Services - PS,A02241195,110100,731400,3061.2
J. F. Drake State CC & TC,10016062,The Alabama Board of Electrical Contractors ,10/19/2023,250,Unrestricted Shared Services,Memberships - PS,A01380968,110100,731300,250
J. F. Drake State CC & TC,10016063,HOAR Program Management LLC ,10/24/2023,24156.43,Unexpended Plant Shared Services,Engineering & Architectural Svc -PS,A01371460,910100,730700,24156.43
J. F. Drake State CC & TC,10016064,National Center for Construction Education and Research ,10/24/2023,44.2,Unrestricted Shared Services,Testing Expense,A00010247,110100,751015,44.2
J. F. Drake State CC & TC,10016065,Schindler Elevator Corporation ,10/26/2023,1648.7,Unrestricted Shared Services,Other Contractual Services - PS,A01368740,110100,731400,1648.7
J. F. Drake State CC & TC,10016066,Waste Management ,10/26/2023,2093.76,Unrestricted Shared Services,Waste Disposal - UC,A01349513,110100,740700,2093.76
J. F. Drake State CC & TC,10016067,DWX Enterprises Inc. ,10/26/2023,3469.76,Unrestricted Shared Services,Other Contractual Services - PS,A02519232,110100,731400,3469.76
J. F. Drake State CC & TC,10016068,Payroll Payable,10/31/2023,20.8,Payroll Clearing Fund,Payroll Payable,A01361446,120000,221100,20.8
J. F. Drake State CC & TC,10016069,Payroll Payable,10/31/2023,820,Payroll Clearing Fund,Payroll Payable,A01361041,120000,221100,820
J. F. Drake State CC & TC,10016070,Payroll Payable,10/31/2023,747.66,Payroll Clearing Fund,Payroll Payable,A01351192,120000,221100,747.66
J. F. Drake State CC & TC,10016071,Payroll Payable,10/31/2023,49.91,Payroll Clearing Fund,Payroll Payable,A01350437,120000,221100,49.91
J. F. Drake State CC & TC,10016072,Payroll Payable,10/31/2023,1222,Payroll Clearing Fund,Payroll Payable,A00329038,120000,221170,1222
J. F. Drake State CC & TC,10016073,Payroll Payable,10/31/2023,450,Payroll Clearing Fund,Payroll Payable,A01373546,120000,221100,450
J. F. Drake State CC & TC,10016074,Payroll Payable,10/31/2023,1093.75,Payroll Clearing Fund,Payroll Payable,A00010262,120000,221100,1093.75
J. F. Drake State CC & TC,10016075,Payroll Payable,10/31/2023,357.5,Payroll Clearing Fund,Payroll Payable,A01351200,120000,221100,357.5
J. F. Drake State CC & TC,10016076,Payroll Payable,10/31/2023,185,Payroll Clearing Fund,Payroll Payable,A01350006,120000,221100,185
J. F. Drake State CC & TC,10016077,Payroll Payable,10/31/2023,244,Payroll Clearing Fund,Payroll Payable,A01349451,120000,221100,244
J. F. Drake State CC & TC,10016078,Dynamic Security Inc ,11/2/2023,15051.9,Unrestricted Shared Services,Other Contractual Services - PS,A01352847,110100,731400,15051.9
J. F. Drake State CC & TC,10016079,New Life Outreach International ,11/2/2023,1150,Unrestricted Shared Services,Other Contractual Services - PS,A02452295,110100,731400,1150
J. F. Drake State CC & TC,10016080,Owen Daniel,11/2/2023,300,Unrestricted Shared Services,Overnight (non tax per diem)- IS,A00249589,110100,710600,300
J. F. Drake State CC & TC,10016081,Alexander Akeem,11/6/2023,170,Unrestricted Shared Services,Overnight (non tax per diem)- IS,A00010030,110100,710600,170
J. F. Drake State CC & TC,10016082,Bubba's Catering ,11/6/2023,1775,Unrestricted Admin Cost Allowance,Culinary Consumables,A01349913,110101,720200,1775
J. F. Drake State CC & TC,10016083,Parrish Jimmy,11/6/2023,1600,Unrestricted Shared Services,Other Contractual Services - PS,A00076261,110100,731400,1600
J. F. Drake State CC & TC,10016084,Sims Patricia,11/6/2023,87.2,Unrestricted Shared Services,Commercial Transportation - OS,A01346009,110100,715100,365.71
J. F. Drake State CC & TC,10016084,Sims Patricia,11/6/2023,90.25,Unrestricted Shared Services,Conus (meals) - OS,A01346009,110100,715200,365.71
J. F. Drake State CC & TC,10016084,Sims Patricia,11/6/2023,188.26,Unrestricted Shared Services,Other Travel Expenses - OS,A01346009,110100,715600,365.71
J. F. Drake State CC & TC,10016085,ACCS Instructional Officers Association ,11/8/2023,300,Unrestricted Shared Services,Memberships - PS,A00010416,110100,731300,300
J. F. Drake State CC & TC,10016086,Alabama Lawnmaster Inc ,11/8/2023,6809,Unrestricted Shared Services,Other Contractual Services - PS,A01361443,110100,731400,6809
J. F. Drake State CC & TC,10016087,Alabama Media ,11/8/2023,75,Unrestricted Shared Services,Advertising & Promotions - OOS,A01352303,110100,750100,75
J. F. Drake State CC & TC,10016088,Bevel Joseph,11/8/2023,44.25,Unrestricted Shared Services,Conus (meals) - OS,A01343178,110100,715200,44.25
J. F. Drake State CC & TC,10016089,Bulluck Bruce,11/8/2023,170,Unrestricted Shared Services,Overnight (non tax per diem)- IS,A01328020,110100,710600,170
J. F. Drake State CC & TC,10016090,CDW LLC ,11/8/2023,4218,Unrestricted Shared Services,Materials and Supplies - MS,A00010372,110100,720500,4218
J. F. Drake State CC & TC,10016091,Cook's Pest Control ,11/8/2023,364,Unrestricted Shared Services,Other Contractual Services - PS,A01349917,110100,731400,364
J. F. Drake State CC & TC,10016092,Delta Theta Lambda Education Foundation ,11/8/2023,600,Unrestricted Shared Services,Advertising & Promotions - OOS,A01379019,110100,750100,600
J. F. Drake State CC & TC,10016093,Doran Brittney,11/8/2023,253.75,Unrestricted Shared Services,Other Travel Expenses - IS,A00348365,110100,710800,253.75
J. F. Drake State CC & TC,10016094,Farrell Corporation ,11/8/2023,2038.73,Unrestricted Shared Services,Materials and Supplies - MS,A01349771,110100,720500,2038.73
J. F. Drake State CC & TC,10016095,FedEx ,11/8/2023,12.85,Unrestricted Shared Services,Freight - OOS,A00010219,110100,750600,12.85
J. F. Drake State CC & TC,10016096,HOAR Program Management LLC ,11/8/2023,25785.4,Unexpended Plant Shared Services,Engineering & Architectural Svc -PS,A01371460,910100,730700,25785.4
J. F. Drake State CC & TC,10016097,Howard Technology Solutions ,11/8/2023,1245,Unrestricted Shared Services,Equipment - non capitalized - MS,A01349929,110100,720300,1245
J. F. Drake State CC & TC,10016098,Huntsville Business Journal ,11/8/2023,800,Unrestricted Shared Services,Advertising & Promotions - OOS,A02374995,110100,750100,800
J. F. Drake State CC & TC,10016099,Madison Chamber of Commerce ,11/8/2023,624,Unrestricted Shared Services,Memberships - PS,A01349826,110100,731300,624
J. F. Drake State CC & TC,10016100,PODS Enterprises Inc ,11/8/2023,453.24,Unexpended Plant Shared Services,Short-Term Equipment Rentals - OOS,A01368741,910100,751600,453.24
J. F. Drake State CC & TC,10016101,Rafferty Kory,11/8/2023,44.25,Unrestricted Shared Services,Conus (meals) - OS,A01342025,110100,715200,44.25
J. F. Drake State CC & TC,10016102,Red Sage Communications Inc ,11/8/2023,490,Unrestricted Shared Services,Advertising & Promotions - OOS,A02241195,110100,750100,490
J. F. Drake State CC & TC,10016103,Sims Patricia,11/8/2023,137.02,Unrestricted Shared Services,Other Travel Expenses - IS,A01346009,110100,710800,437.02
J. F. Drake State CC & TC,10016103,Sims Patricia,11/8/2023,300,Unrestricted Shared Services,Conus (meals) - IS,A01346009,110100,710200,437.02
J. F. Drake State CC & TC,10016104,Xerox Corporation ,11/8/2023,13316.25,Unrestricted Shared Services,Service Contracts on Equipment -OOS,A00010379,110100,751400,13316.25
J. F. Drake State CC & TC,10016105,Fite Construction Co LLC ,11/14/2023,426300.09,Unexpended Plant Shared Services2,Construction in Progress - CE,A02520278,910101,790900,426300.09
J. F. Drake State CC & TC,10016106,OMI Inc. ,11/14/2023,460,Unexpended Plant Shared Services,Other Professional Fees - PS,A02443091,910100,731600,460
J. F. Drake State CC & TC,10016107,Student Payment,11/15/2023,241.15,Unrestricted Shared Services,Clearing Refunds - SP,A01367627,110100,230200,241.15
J. F. Drake State CC & TC,10016108,Student Payment,11/15/2023,500,Unrestricted Shared Services,Clearing Refunds - SP,A00264192,110100,230200,500
J. F. Drake State CC & TC,10016109,Student Payment,11/15/2023,1165,Unrestricted Shared Services,Clearing Refunds - SP,A02381138,110100,230200,1165
J. F. Drake State CC & TC,10016110,Student Payment,11/15/2023,1539,Unrestricted Shared Services,Clearing Refunds - SP,A00335874,110100,230200,1539
J. F. Drake State CC & TC,10016111,Student Payment,11/15/2023,319,Unrestricted Shared Services,Clearing Refunds - SP,A02330301,110100,230200,319
J. F. Drake State CC & TC,10016112,Alabama Community College System President's Association ,11/16/2023,750,Unrestricted Shared Services,Memberships - PS,A01377799,110100,731300,750
J. F. Drake State CC & TC,10016113,Castle Branch Inc. ,11/16/2023,40.75,Unrestricted Shared Services,Other - AP,A01361458,110100,211200,40.75
J. F. Drake State CC & TC,10016114,Dynamic Security Inc ,11/16/2023,7722.45,Unrestricted Shared Services,Other Contractual Services - PS,A01352847,110100,731400,7722.45
J. F. Drake State CC & TC,10016115,Ecampus.com ,11/16/2023,183.93,Unrestricted Shared Services,Materials and Supplies - MS,A02206556,110100,720500,183.93
J. F. Drake State CC & TC,10016116,ESCO Institute ,11/16/2023,150,Unrestricted Shared Services,Accreditation Expense - PS,A01351183,110100,730200,150
J. F. Drake State CC & TC,10016117,Huntsville Utilities ,11/16/2023,147.9,Unrestricted Shared Services,Gas & Heating Fuel - UC,A01361021,110100,740300,12668.41
J. F. Drake State CC & TC,10016117,Huntsville Utilities ,11/16/2023,803.54,Unrestricted Shared Services,Water & Sewer - UC,A01361021,110100,740600,12668.41
J. F. Drake State CC & TC,10016117,Huntsville Utilities ,11/16/2023,11716.97,Unrestricted Shared Services,Electricity - UC,A01361021,110100,740200,12668.41
J. F. Drake State CC & TC,10016118,Kings III of America LLC ,11/16/2023,296,Unrestricted Shared Services,Other Contractual Services - PS,A02280881,110100,731400,296
J. F. Drake State CC & TC,10016119,Mobile Communications America Inc ,11/16/2023,1649,Unrestricted Shared Services,Other Contractual Services - PS,A01350761,110100,731400,1649
J. F. Drake State CC & TC,10016120,Museum Board of the City of Huntsville ,11/16/2023,1100,Unrestricted Shared Services,Advertising & Promotions - OOS,A02351420,110100,750100,1100
J. F. Drake State CC & TC,10016121,Pearce Regina,11/16/2023,300,Unrestricted Shared Services,Overnight (non tax per diem)- IS,A01389738,110100,710600,300
J. F. Drake State CC & TC,10016122,Staples Business Advantage ,11/16/2023,1601.36,Unrestricted Shared Services,Materials and Supplies - MS,A01374940,110100,720500,1601.36
J. F. Drake State CC & TC,10016123,Tate Sharde,11/16/2023,100,Unrestricted Shared Services,Other Contractual Services - PS,A02279881,110100,731400,100
J. F. Drake State CC & TC,10016124,Walker Rachel,11/16/2023,3500,Unrestricted Shared Services,Other Professional Fees - PS,A00126181,110100,731600,3500
J. F. Drake State CC & TC,10016125,Xerox Corporation ,11/16/2023,-15.62,Unrestricted Shared Services,Maintenance & Repairs  - OOS,A00010379,110100,751100,10.17
J. F. Drake State CC & TC,10016125,Xerox Corporation ,11/16/2023,25.79,Unrestricted Shared Services,Service Contracts on Equipment -OOS,A00010379,110100,751400,10.17
J. F. Drake State CC & TC,10016126,Chavers Audrey,11/21/2023,12,Unrestricted Shared Services,Other Travel Expenses - IS,A00128176,110100,710800,547.22
J. F. Drake State CC & TC,10016126,Chavers Audrey,11/21/2023,69,Unrestricted Shared Services,Conus (meals) - IS,A00128176,110100,710200,547.22
J. F. Drake State CC & TC,10016126,Chavers Audrey,11/21/2023,466.22,Unrestricted Shared Services,Mileage - IS,A00128176,110100,710400,547.22
J. F. Drake State CC & TC,10016127,Drake Robert,11/21/2023,300,Unrestricted Shared Services,Overnight (non tax per diem)- IS,A02343555,110100,710600,300
J. F. Drake State CC & TC,10016128,Sterling Seacrest Pritchard Inc ,11/21/2023,8802.4,Unrestricted Shared Services,Insurance and Bonding - PS,A02436032,110100,730900,8802.4
J. F. Drake State CC & TC,10016129,Ward Mattavia,11/21/2023,300,Unrestricted Shared Services,Overnight (non tax per diem)- IS,A00032628,110100,710600,300
J. F. Drake State CC & TC,10016130,Waste Management ,11/21/2023,1073.05,Unrestricted Shared Services,Waste Disposal - UC,A01349513,110100,740700,1073.05
J. F. Drake State CC & TC,10016131,Penn National Insurance ,11/28/2023,653,Unrestricted Shared Services,Insurance and Bonding - PS,A01378413,110100,730900,653
J. F. Drake State CC & TC,10016132,Payroll Payable,11/30/2023,20.8,Payroll Clearing Fund,Payroll Payable,A01361446,120000,221100,20.8
J. F. Drake State CC & TC,10016133,Payroll Payable,11/30/2023,810,Payroll Clearing Fund,Payroll Payable,A01361041,120000,221100,810
J. F. Drake State CC & TC,10016134,Payroll Payable,11/30/2023,747.66,Payroll Clearing Fund,Payroll Payable,A01351192,120000,221100,747.66
J. F. Drake State CC & TC,10016135,Payroll Payable,11/30/2023,49.91,Payroll Clearing Fund,Payroll Payable,A01350437,120000,221100,49.91
J. F. Drake State CC & TC,10016136,Payroll Payable,11/30/2023,1222,Payroll Clearing Fund,Payroll Payable,A00329038,120000,221170,1222
J. F. Drake State CC & TC,10016137,Payroll Payable,11/30/2023,450,Payroll Clearing Fund,Payroll Payable,A01373546,120000,221100,450
J. F. Drake State CC & TC,10016138,Payroll Payable,11/30/2023,1093.75,Payroll Clearing Fund,Payroll Payable,A00010262,120000,221100,1093.75
J. F. Drake State CC & TC,10016139,Payroll Payable,11/30/2023,357.5,Payroll Clearing Fund,Payroll Payable,A01351200,120000,221100,357.5
J. F. Drake State CC & TC,10016140,Payroll Payable,11/30/2023,185,Payroll Clearing Fund,Payroll Payable,A01350006,120000,221100,185
J. F. Drake State CC & TC,10016141,Payroll Payable,11/30/2023,97.6,Payroll Clearing Fund,Payroll Payable,A01349451,120000,221100,97.6
J. F. Drake State CC & TC,10016142,AACC ,12/1/2023,2296,Unrestricted Shared Services,Memberships - PS,A01350816,110100,731300,2296
J. F. Drake State CC & TC,10016143,Borden Dennis,12/1/2023,300,Unrestricted Shared Services,Overnight (non tax per diem)- IS,A00293168,110100,710600,300
J. F. Drake State CC & TC,10016144,Bulluck Bruce,12/1/2023,41.32,Unrestricted Shared Services,Gasoline & Oil - Motor Veh - OOS,A01328020,110100,750700,41.32
J. F. Drake State CC & TC,10016145,Castle Branch Inc. ,12/1/2023,189.5,Unrestricted Shared Services,Other - AP,A01361458,110100,211200,189.5
J. F. Drake State CC & TC,10016146,Cook's Pest Control ,12/1/2023,364,Unrestricted Shared Services,Other Contractual Services - PS,A01349917,110100,731400,364
J. F. Drake State CC & TC,10016147,Driskill ChrisAnn,12/1/2023,20,Unrestricted Shared Services,Other Travel Expenses - IS,A02304224,110100,710800,59.75
J. F. Drake State CC & TC,10016147,Driskill ChrisAnn,12/1/2023,39.75,Unrestricted Shared Services,Conus (meals) - IS,A02304224,110100,710200,59.75
J. F. Drake State CC & TC,10016148,Dynamic Security Inc ,12/1/2023,7506.3,Unrestricted Shared Services,Other Contractual Services - PS,A01352847,110100,731400,7506.3
J. F. Drake State CC & TC,10016149,Farrell Corporation ,12/1/2023,684.5,Unrestricted Shared Services,Materials and Supplies - MS,A01349771,110100,720500,684.5
J. F. Drake State CC & TC,10016150,FedEx ,12/1/2023,8.74,Unrestricted Shared Services,Freight - OOS,A00010219,110100,750600,8.74
J. F. Drake State CC & TC,10016151,Huntsville Business Journal ,12/1/2023,800,Unrestricted Shared Services,Advertising & Promotions - OOS,A02374995,110100,750100,800
J. F. Drake State CC & TC,10016152,Leadership Greater Huntsville Inc. ,12/1/2023,281.25,Unrestricted Shared Services,Memberships - PS,A01353098,110100,731300,281.25
J. F. Drake State CC & TC,10016153,LogoBranders Inc ,12/1/2023,1377.06,Unrestricted Shared Services,Advertising & Promotions - OOS,A01350088,110100,750100,1377.06
J. F. Drake State CC & TC,10016154,Lynn Adelina,12/1/2023,300,Unrestricted Shared Services,Other Contractual Services - PS,A02517628,110100,731400,300
J. F. Drake State CC & TC,10016155,Mauldin & Jenkins LLC ,12/1/2023,3500,Unrestricted Shared Services,Accounting & Auditing Services - PS,A02422512,110100,730100,3500
J. F. Drake State CC & TC,10016156,New Life Outreach International ,12/1/2023,1150,Unrestricted Shared Services,Other Contractual Services - PS,A02452295,110100,731400,1150
J. F. Drake State CC & TC,10016157,Parchment LLC ,12/1/2023,265.2,Unrestricted Shared Services,Transcript Expense,A01350771,110100,751017,265.2
J. F. Drake State CC & TC,10016158,PODS Enterprises Inc ,12/1/2023,1630.14,Unexpended Plant Shared Services,Short-Term Equipment Rentals - OOS,A01368741,910100,751600,1630.14
J. F. Drake State CC & TC,10016159,Wells Printing Company Inc ,12/1/2023,246,Unrestricted Shared Services,Printing and Binding - OOS,A01350075,110100,751300,1225.66
J. F. Drake State CC & TC,10016159,Wells Printing Company Inc ,12/1/2023,979.66,Unrestricted Shared Services,Advertising & Promotions - OOS,A01350075,110100,750100,1225.66
J. F. Drake State CC & TC,10016160,ACT Inc ,12/7/2023,43,Unrestricted Shared Services,Testing Expense,A00010341,110100,751015,43
J. F. Drake State CC & TC,10016161,Alabama Labor Law Poster ,12/7/2023,212,Unrestricted Shared Services,Materials and Supplies - MS,A01365315,110100,720500,212
J. F. Drake State CC & TC,10016162,Alabama Lawnmaster Inc ,12/7/2023,3404.5,Unrestricted Shared Services,Other Contractual Services - PS,A01361443,110100,731400,3404.5
J. F. Drake State CC & TC,10016163,Albert's Flowers ,12/7/2023,150,Phi Theta Kappa,Materials and Supplies - MS,A02302614,810262,720500,150
J. F. Drake State CC & TC,10016164,CM&F ,12/7/2023,2156,Unrestricted Shared Services,Other - AP,A01387433,110100,211200,2156
J. F. Drake State CC & TC,10016165,Connie's Candy Company LLC ,12/7/2023,419.65,Unrestricted Shared Services,Culinary Consumables,A02540543,110100,720200,419.65
J. F. Drake State CC & TC,10016166,Dynamic Security Inc ,12/7/2023,3782.63,Unrestricted Shared Services,Other Contractual Services - PS,A01352847,110100,731400,3782.63
J. F. Drake State CC & TC,10016167,Farrell Corporation ,12/7/2023,2737.78,Unrestricted Shared Services,Materials and Supplies - MS,A01349771,110100,720500,2737.78
J. F. Drake State CC & TC,10016168,Federal Street Strategies ,12/7/2023,12000,Unrestricted Shared Services,Other Professional Fees - PS,A02534201,110100,731600,12000
J. F. Drake State CC & TC,10016169,FedEx ,12/7/2023,9.03,Unrestricted Shared Services,Freight - OOS,A00010219,110100,750600,9.03
J. F. Drake State CC & TC,10016170,North Alabama Engraving Stamp Company ,12/7/2023,64.5,Unrestricted Shared Services,Grants  Awards and Prizes - OOS,A01353127,110100,750800,64.5
J. F. Drake State CC & TC,10016171,Office Depot ,12/7/2023,217.74,Unrestricted Shared Services,Materials and Supplies - MS,A01349944,110100,720500,217.74
J. F. Drake State CC & TC,10016172,President's Round Table ,12/7/2023,600,Unrestricted Shared Services,Memberships - PS,A01379788,110100,731300,600
J. F. Drake State CC & TC,10016173,Sims Patricia,12/7/2023,186,Unrestricted Shared Services,Conus (meals) - IS,A01346009,110100,710200,625.9
J. F. Drake State CC & TC,10016173,Sims Patricia,12/7/2023,439.9,Unrestricted Shared Services,Lodging - IS,A01346009,110100,710300,625.9
J. F. Drake State CC & TC,10016174,State of Alabama ,12/7/2023,13618,Unrestricted Shared Services,Other Contractual Services - PS,A00010262,110100,731400,13618
J. F. Drake State CC & TC,10016175,Swain Don,12/7/2023,18.75,Unrestricted Shared Services,Taxes & Licenses - OOS,A00264841,110100,751800,18.75
J. F. Drake State CC & TC,10016176,Xerox Corporation ,12/7/2023,-0.95,Unrestricted Shared Services,Maintenance & Repairs  - OOS,A00010379,110100,751100,17.7
J. F. Drake State CC & TC,10016176,Xerox Corporation ,12/7/2023,18.65,Unrestricted Shared Services,Service Contracts on Equipment -OOS,A00010379,110100,751400,17.7
J. F. Drake State CC & TC,30018545,Southern Solar Systems ,10/6/2023,99000,Carl Perkins Career & Tech X1-X2,Furniture and Equip > $25K - CE,A02396366,211431,791200,99000
J. F. Drake State CC & TC,30018546,Student Payment,10/9/2023,630.2,Refund Fund,Clearing Refunds - SP,A01989875,217000,230200,2500
J. F. Drake State CC & TC,30018546,Student Payment,10/9/2023,1869.8,Unrestricted Shared Services,Clearing Refunds - SP,A01989875,110100,230200,2500
J. F. Drake State CC & TC,30018547,Davis Cilyah,10/9/2023,2190,NASA MUREP Grant,Participant Costs-Stipends,A02405240,217212,751010,2190
J. F. Drake State CC & TC,30018548,AspirEDU Inc. ,10/10/2023,9081.6,Title III (Activity 5),Computer Software(non capital) - MS,A01352952,211635,720100,9081.6
J. F. Drake State CC & TC,30018549,Business Systems & Consultants Inc ,10/10/2023,15827.58,Equip-Supt Patient Care Tech Pgm,Other Contractual Services - PS,A01361453,222630,731400,15827.58
J. F. Drake State CC & TC,30018550,Cool Stuff by Austin ,10/10/2023,850,FY23 Stand-Alone LPN Grant,Other Contractual Services - PS,A01373729,229130,731400,850
J. F. Drake State CC & TC,30018551,Dawn Lackey Vanzo ,10/10/2023,4208.75,Title III (Activity 5),Other Professional Fees - PS,A02448644,211625,731600,4208.75
J. F. Drake State CC & TC,30018552,Dunlap Contracting Inc ,10/10/2023,4730,Title III (Activity 3),Construction in Progress - CE,A02280778,211623,790900,4730
J. F. Drake State CC & TC,30018553,EBSCO Industries Inc ,10/10/2023,30802.08,Title III (Activity 2),Subscriptions - OOS,A01349508,211632,751700,30802.08
J. F. Drake State CC & TC,30018554,Ecampus.com ,10/10/2023,5002.4,Title III (Activity 2),Books - CE,A02206556,211622,790600,5002.4
J. F. Drake State CC & TC,30018555,Herc Rentals Inc ,10/10/2023,760,Restricted State Grants Misc,Short-Term Equipment Rentals - OOS,A01361435,227999,751600,760
J. F. Drake State CC & TC,30018556,Holston Gases Inc ,10/10/2023,195,Title III (Activity 1),Materials and Supplies - MS,A01349484,211631,720500,195
J. F. Drake State CC & TC,30018557,Next Gen Web Solutions ,10/10/2023,300,LPN Program Grant,Other Contractual Services - PS,A01350140,229110,731400,300
J. F. Drake State CC & TC,30018558,OMI Inc. ,10/10/2023,743.75,Title III (Activity 3),Other Professional Fees - PS,A02443091,211623,731600,743.75
J. F. Drake State CC & TC,30018559,ProQuest ,10/10/2023,7099.65,Title III (Activity 2),Subscriptions - OOS,A01349907,211632,751700,7099.65
J. F. Drake State CC & TC,30018560,SPR Inc. ,10/10/2023,77.5,Title III (Activity 4),Equipment - non capitalized - MS,A02393699,211634,720300,197.05
J. F. Drake State CC & TC,30018560,SPR Inc. ,10/10/2023,119.55,ATT Grant,Equipment - non capitalized - MS,A02393699,240031,720300,197.05
J. F. Drake State CC & TC,30018561,Thomas Electric Inc ,10/10/2023,11326,Title III (Activity 3),Other Contractual Services - PS,A01356752,211623,731400,11326
J. F. Drake State CC & TC,30018562,Xerox Corporation ,10/10/2023,338.33,Title III (Activity 1),Maintenance & Repairs  - OOS,A00010379,211621,751100,792.19
J. F. Drake State CC & TC,30018562,Xerox Corporation ,10/10/2023,453.86,Title III (Activity 1),Technology - non capitalized - MS,A00010379,211621,720700,792.19
J. F. Drake State CC & TC,30018563,Bell Angela,10/12/2023,417,Title III (Activity 6),Conus (meals) - OS,A00196556,211636,715200,417
J. F. Drake State CC & TC,30018564,Carolina Biological Supply Co ,10/12/2023,717.6,Title III (Activity 1),Materials and Supplies - MS,A01349848,211631,720500,717.6
J. F. Drake State CC & TC,30018565,Ecampus.com ,10/12/2023,-777.36,Unrestricted Shared Services,Bond Surety Fee Payable - AP,A02206556,110100,210200,8267.46
J. F. Drake State CC & TC,30018565,Ecampus.com ,10/12/2023,9044.82,Dual Enrollment  Sch. 2XX1-2XX2,Books (Non-Library),A02206556,222030,751020,8267.46
J. F. Drake State CC & TC,30018566,ICD Design LLC ,10/12/2023,9776,Career Tech Equipment - Automotive,Materials and Supplies - MS,A02495929,229830,720500,9776
J. F. Drake State CC & TC,30018567,Lyft Inc ,10/12/2023,183.15,TRUIST Grant (Pass-Through),Other Contractual Services - PS,A02445005,240420,731400,183.15
J. F. Drake State CC & TC,30018568,Thomas Electric Inc ,10/12/2023,1632,Career Tech Equipment - Automotive,Other Contractual Services - PS,A01356752,229830,731400,1632
J. F. Drake State CC & TC,30018569,Williams Kelly,10/12/2023,145.5,Title III (Activity 1),Conus (meals) - IS,A01347480,211621,710200,1035.72
J. F. Drake State CC & TC,30018569,Williams Kelly,10/12/2023,290.22,Title III (Activity 1),Lodging - IS,A01347480,211621,710300,1035.72
J. F. Drake State CC & TC,30018569,Williams Kelly,10/12/2023,600,Title III (Activity 1),Overnight (non tax per diem)- IS,A01347480,211631,710600,1035.72
J. F. Drake State CC & TC,30018570,Carolina Biological Supply Co ,10/17/2023,218.4,Title III (Activity 1),Materials and Supplies - MS,A01349848,211631,720500,218.4
J. F. Drake State CC & TC,30018571,Stericycle Inc ,10/17/2023,98.45,Future Act (Activity 1),Waste Disposal - UC,A01350066,250243,740700,98.45
J. F. Drake State CC & TC,30018572,Ecampus.com ,10/19/2023,900.49,Title III (Activity 2),Books - CE,A02206556,211632,790600,900.49
J. F. Drake State CC & TC,30018573,McKee Katelyn,10/19/2023,170,Title III (Activity 1),Overnight (non tax per diem)- IS,A00270935,211631,710600,170
J. F. Drake State CC & TC,30018574,PODS Enterprises Inc ,10/19/2023,204,Future Act (Activity 1),Short-Term Equipment Rentals - OOS,A01368741,250243,751600,204
J. F. Drake State CC & TC,30018575,Wheeler Eunice,10/19/2023,108,Title III (Activity 1),Other Travel Expenses - OS,A00208580,211621,715600,236.25
J. F. Drake State CC & TC,30018575,Wheeler Eunice,10/19/2023,128.25,Title III (Activity 1),Conus (meals) - OS,A00208580,211621,715200,236.25
J. F. Drake State CC & TC,30018576,Student Payment,10/20/2023,26.11,Refund Fund,Clearing Refunds - SP,A02316682,217000,230200,26.11
J. F. Drake State CC & TC,30018577,Student Payment,10/20/2023,925,Refund Fund,Clearing Refunds - SP,A02296812,217000,230200,925
J. F. Drake State CC & TC,30018578,Student Payment,10/20/2023,924,Refund Fund,Clearing Refunds - SP,A02299105,217000,230200,924
J. F. Drake State CC & TC,30018579,Student Payment,10/20/2023,513,Refund Fund,Clearing Refunds - SP,A02499479,217000,230200,513
J. F. Drake State CC & TC,30018580,Middle Tennessee State University ,10/24/2023,1427.81,NASA MUREP Grant,Grants  Awards and Prizes - OOS,A02432499,217212,750800,1427.81
J. F. Drake State CC & TC,30018581,Ellis Dustin,10/25/2023,108.75,Restricted State Grants Misc,Participant Costs-Stipends,A01334140,227999,751010,108.75
J. F. Drake State CC & TC,30018582,Hoang Jimmy,10/25/2023,105,Restricted State Grants Misc,Participant Costs-Stipends,A02356853,227999,751010,105
J. F. Drake State CC & TC,30018583,Humphrey Ii Adam,10/25/2023,67.5,Restricted State Grants Misc,Participant Costs-Stipends,A02509295,227999,751010,67.5
J. F. Drake State CC & TC,30018584,Jackson Andrew,10/25/2023,71.25,Restricted State Grants Misc,Participant Costs-Stipends,A02492610,227999,751010,71.25
J. F. Drake State CC & TC,30018585,Long Kanyla,10/25/2023,82.5,Restricted State Grants Misc,Participant Costs-Stipends,A02475927,227999,751010,82.5
J. F. Drake State CC & TC,30018586,Maddox Matthew,10/25/2023,86.25,Restricted State Grants Misc,Participant Costs-Stipends,A00338183,227999,751010,86.25
J. F. Drake State CC & TC,30018587,McLellan Connor,10/25/2023,86.25,Restricted State Grants Misc,Participant Costs-Stipends,A01387101,227999,751010,86.25
J. F. Drake State CC & TC,30018588,Perry Jermaine,10/25/2023,105,Restricted State Grants Misc,Participant Costs-Stipends,A02445490,227999,751010,105
J. F. Drake State CC & TC,30018589,Tolbert Eddie,10/25/2023,93.75,Restricted State Grants Misc,Participant Costs-Stipends,A02095114,227999,751010,93.75
J. F. Drake State CC & TC,30018590,Turner Brianna,10/25/2023,86.25,Restricted State Grants Misc,Participant Costs-Stipends,A00294885,227999,751010,86.25
J. F. Drake State CC & TC,30018591,Watkins Thurstan,10/25/2023,82.5,Restricted State Grants Misc,Participant Costs-Stipends,A02512808,227999,751010,82.5
J. F. Drake State CC & TC,30018592,LIFTNOW Automotive Equipment Corp ,10/26/2023,8220.77,Career Tech Equipment - Automotive,Furniture and Equip $5K - $25K - CE,A02370980,229830,791100,8220.77
J. F. Drake State CC & TC,30018593,National Association of HBCU Title III Administrators ,10/26/2023,350,Title III (Activity A Prog Admin),Memberships - PS,A01351219,211648,731300,350
J. F. Drake State CC & TC,30018594,TouchNet Information Systems Inc ,10/26/2023,250,Title III (Activity 6),Taxes & Licenses - OOS,A01349665,211646,751800,250
J. F. Drake State CC & TC,30018595,Jim Cooper Construction Company Inc ,10/26/2023,929029.92,ARP HEERF III - HBCU,Construction in Progress - CE,A02442060,212220,790900,929029.92
J. F. Drake State CC & TC,30018596,Clark Casey,11/2/2023,170,Title III (Activity 1),Overnight (non tax per diem)- IS,A00329845,211631,710600,170
J. F. Drake State CC & TC,30018597,Hair Queen Beauty LLC ,11/2/2023,3500,Dual Enrollment  Sch. 2XX1-2XX2,Books (Non-Library),A02314725,222030,751020,3500
J. F. Drake State CC & TC,30018598,Bell Angela,11/8/2023,309,Title III (Activity 6),Conus (meals) - OS,A00196556,211636,715200,309
J. F. Drake State CC & TC,30018599,Hambrick Neoka,11/8/2023,6.45,Title III (Activity 6),Lodging - IS,A00038569,211636,710300,224.95
J. F. Drake State CC & TC,30018599,Hambrick Neoka,11/8/2023,218.5,Title III (Activity 6),Conus (meals) - IS,A00038569,211636,710200,224.95
J. F. Drake State CC & TC,30018600,Mayer Levi,11/8/2023,600,Title III (Activity 1),Overnight (non tax per diem)- IS,A02369381,211631,710600,600
J. F. Drake State CC & TC,30018601,Office Depot ,11/8/2023,552.38,Title III (Activity 6),Materials and Supplies - MS,A01349944,211646,720500,552.38
J. F. Drake State CC & TC,30018602,Olinger Jennifer,11/8/2023,109.25,Title III (Activity 6),Conus (meals) - IS,A00269723,211636,710200,109.25
J. F. Drake State CC & TC,30018603,Owens Lydia,11/8/2023,170,Title III (Activity 1),Overnight (non tax per diem)- IS,A00372233,211631,710600,170
J. F. Drake State CC & TC,30018604,Parkway Scrubs Inc ,11/8/2023,207.91,Glenn Family Student Support Fund,Materials and Supplies - MS,A02293505,240930,720500,207.91
J. F. Drake State CC & TC,30018605,PODS Enterprises Inc ,11/8/2023,204,Future Act (Activity 1),Short-Term Equipment Rentals - OOS,A01368741,250243,751600,204
J. F. Drake State CC & TC,30018606,Shotts Lesley,11/8/2023,168.25,Title III (Activity 6),Conus (meals) - IS,A01330530,211626,710200,168.25
J. F. Drake State CC & TC,30018607,Stericycle Inc ,11/8/2023,98.45,Future Act (Activity 1),Waste Disposal - UC,A01350066,250243,740700,98.45
J. F. Drake State CC & TC,30018608,Swain Don,11/8/2023,300,Title III (Activity 6),Overnight (non tax per diem)- IS,A00264841,211636,710600,300
J. F. Drake State CC & TC,30018609,Ward Mattavia,11/8/2023,170,Title III (Activity 6),Overnight (non tax per diem)- IS,A00032628,211636,710600,170
J. F. Drake State CC & TC,30018610,Student Payment,11/9/2023,1123,Refund Fund,Clearing Refunds - SP,A02330301,217000,230200,1123
J. F. Drake State CC & TC,30018611,Jim Cooper Construction Company Inc ,11/14/2023,1130585.5,ARP HEERF III - HBCU,Construction in Progress - CE,A02442060,212220,790900,1130585.5
J. F. Drake State CC & TC,30018612,Student Payment,11/15/2023,2223,Refund Fund,Clearing Refunds - SP,A02401794,217000,230200,2223
J. F. Drake State CC & TC,30018613,Alabama Community College Association ,11/16/2023,1500,Title III (Activity 1),Memberships - PS,A00010365,211631,731300,1500
J. F. Drake State CC & TC,30018614,Blackbaud Inc ,11/16/2023,14068.65,Title III (Activity A Institution),Computer Software(non capital) - MS,A01350109,211647,720100,14068.65
J. F. Drake State CC & TC,30018615,Ecampus.com ,11/16/2023,205.52,Glenn Family Student Support Fund,Materials and Supplies - MS,A02206556,240930,720500,770.98
J. F. Drake State CC & TC,30018615,Ecampus.com ,11/16/2023,205.66,Glenn Family Student Support Fund,Books (Non-Library),A02206556,240930,751020,770.98
J. F. Drake State CC & TC,30018615,Ecampus.com ,11/16/2023,359.8,Dual Enrollment  Sch. 2XX1-2XX2,Books (Non-Library),A02206556,222030,751020,770.98
J. F. Drake State CC & TC,30018616,Gurley Melonie,11/16/2023,10,Title III (Activity 6),Other Travel Expenses - IS,A00148636,211636,710800,165.5
J. F. Drake State CC & TC,30018616,Gurley Melonie,11/16/2023,155.5,Title III (Activity 6),Conus (meals) - IS,A00148636,211636,710200,165.5
J. F. Drake State CC & TC,30018617,Hammon Gary,11/16/2023,420,AE - Career Pathways,Other Contractual Services - PS,A00085538,224890,731400,420
J. F. Drake State CC & TC,30018618,HeartBeat100 LLC ,11/16/2023,260,Gas & Water Operations Scholarship,Other Professional Fees - PS,A02532634,240230,731600,260
J. F. Drake State CC & TC,30018619,Holston Gases Inc ,11/16/2023,541.34,Title III (Activity 1),Materials and Supplies - MS,A01349484,211641,720500,541.34
J. F. Drake State CC & TC,30018620,Lyft Inc ,11/16/2023,116.76,TRUIST Grant (Pass-Through),Other Travel Expenses - IS,A02445005,240420,710800,116.76
J. F. Drake State CC & TC,30018621,MSC Industrial Supply ,11/16/2023,267.5,Title III (Activity 1),Materials and Supplies - MS,A01349936,211631,720500,603.34
J. F. Drake State CC & TC,30018621,MSC Industrial Supply ,11/16/2023,335.84,Title III (Activity 1),Materials and Supplies - MS,A01349936,211641,720500,603.34
J. F. Drake State CC & TC,30018622,Office Depot ,11/16/2023,76.84,Title III (Activity 5),Materials and Supplies - MS,A01349944,211645,720500,76.84
J. F. Drake State CC & TC,30018623,Thompson Tractor Company ,11/16/2023,3921.07,Innovation Center,Short-Term Equipment Rentals - OOS,A01350900,229600,751600,3921.07
J. F. Drake State CC & TC,30018624,Xerox Corporation ,11/16/2023,16,Title III (Activity 1),Technology - non capitalized - MS,A00010379,211621,720700,874.92
J. F. Drake State CC & TC,30018624,Xerox Corporation ,11/16/2023,56,Title III (Activity 1),Service Contracts on Equipment -OOS,A00010379,211631,751400,874.92
J. F. Drake State CC & TC,30018624,Xerox Corporation ,11/16/2023,93.53,Title III (Activity 1),Maintenance & Repairs  - OOS,A00010379,211631,751100,874.92
J. F. Drake State CC & TC,30018624,Xerox Corporation ,11/16/2023,337.5,Title III (Activity 6),Maintenance & Repairs  - OOS,A00010379,211636,751100,874.92
J. F. Drake State CC & TC,30018624,Xerox Corporation ,11/16/2023,371.89,Title III (Activity 1),Technology - non capitalized - MS,A00010379,211631,720700,874.92
J. F. Drake State CC & TC,30018625,Bibb Bonnie,11/21/2023,67.5,FY23 Stand-Alone LPN Grant,Conus (meals) - OS,A00720392,229130,715200,67.5
J. F. Drake State CC & TC,30018626,McLaughlin Stephanie,11/21/2023,74,FY23 Stand-Alone LPN Grant,Conus (meals) - OS,A00207211,229130,715200,74
J. F. Drake State CC & TC,30018627,Bubba's Catering ,11/28/2023,4317.5,Annie E Casey Foundation,Culinary Consumables,A01349913,240032,720200,4317.5
J. F. Drake State CC & TC,30018628,AACRAO ,12/1/2023,604,Title III (Activity 6),Memberships - PS,A01349732,211636,731300,604
J. F. Drake State CC & TC,30018629,ACCS Human Resources Management Association ,12/1/2023,250,Title III (Activity 6),Memberships - PS,A00010382,211636,731300,250
J. F. Drake State CC & TC,30018630,Alabama Community College System Instructional Administrator ,12/1/2023,300,Title III (Activity 1),Memberships - PS,A01361468,211631,731300,300
J. F. Drake State CC & TC,30018631,Alabama Deans of Student Affairs Association ,12/1/2023,400,Title III (Activity 5),Memberships - PS,A00010342,211635,731300,400
J. F. Drake State CC & TC,30018632,Bell Angela,12/1/2023,109.75,Title III (Activity 6),Conus (meals) - IS,A00196556,211636,710200,109.75
J. F. Drake State CC & TC,30018633,Ecampus.com ,12/1/2023,78.46,Glenn Family Student Support Fund,Materials and Supplies - MS,A02206556,240930,720500,78.46
J. F. Drake State CC & TC,30018634,Gilliland Regina,12/1/2023,159,Title III (Activity 6),Conus (meals) - IS,A00722211,211636,710200,159
J. F. Drake State CC & TC,30018635,Henderson Carolyn,12/1/2023,90.25,Title III (Activity 1),Conus (meals) - IS,A00371371,211631,710200,90.25
J. F. Drake State CC & TC,30018636,Lincoln Electric Company ,12/1/2023,11381.59,Title III (Activity 1),Materials and Supplies - MS,A01349500,211641,720500,11381.59
J. F. Drake State CC & TC,30018637,McKesson Medical-Surgical Government Solutions Llc ,12/1/2023,1622.87,FY23 Stand-Alone LPN Grant,Materials and Supplies - MS,A01349437,229130,720500,1622.87
J. F. Drake State CC & TC,30018638,Mullins John,12/1/2023,170,Title III (Activity 1),Overnight (non tax per diem)- IS,A02494335,211631,710600,170
J. F. Drake State CC & TC,30018639,Pepic Flores Azra,12/1/2023,24.15,NASA MUREP Grant,Other Travel Expenses - OS,A02484522,217212,715600,209.15
J. F. Drake State CC & TC,30018639,Pepic Flores Azra,12/1/2023,185,NASA MUREP Grant,Conus (meals) - OS,A02484522,217212,715200,209.15
J. F. Drake State CC & TC,30018640,Swain Don,12/1/2023,133.36,Title III (Activity 6),Mileage - IS,A00264841,211636,710400,433.36
J. F. Drake State CC & TC,30018640,Swain Don,12/1/2023,300,Title III (Activity 6),Overnight (non tax per diem)- IS,A00264841,211636,710600,433.36
J. F. Drake State CC & TC,30018641,Alabama Correctional Industries ,12/7/2023,135.92,Title III (Activity 6),Materials and Supplies - MS,A01379242,211646,720500,135.92
J. F. Drake State CC & TC,30018642,Holston Gases Inc ,12/7/2023,195,Title III (Activity 1),Materials and Supplies - MS,A01349484,211641,720500,195
J. F. Drake State CC & TC,30018643,McKesson Medical-Surgical Government Solutions Llc ,12/7/2023,695.8,FY23 Stand-Alone LPN Grant,Materials and Supplies - MS,A01349437,229130,720500,695.8
J. F. Drake State CC & TC,30018644,Office Depot ,12/7/2023,102.98,Future Act (Activity 1),Materials and Supplies - MS,A01349944,250243,720500,801.06
J. F. Drake State CC & TC,30018644,Office Depot ,12/7/2023,196.01,Title III (Activity 6),Materials and Supplies - MS,A01349944,211646,720500,801.06
J. F. Drake State CC & TC,30018644,Office Depot ,12/7/2023,502.07,FY23 Stand-Alone LPN Grant,Materials and Supplies - MS,A01349944,229130,720500,801.06
J. F. Drake State CC & TC,30018645,PODS Enterprises Inc ,12/7/2023,204,Future Act (Activity 1),Short-Term Equipment Rentals - OOS,A01368741,250243,751600,204
J. F. Drake State CC & TC,30018646,Stericycle Inc ,12/7/2023,98.45,Future Act (Activity 1),Waste Disposal - UC,A01350066,250243,740700,98.45
J. F. Drake State CC & TC,30018647,Xerox Corporation ,12/7/2023,16,Title III (Activity 1),Technology - non capitalized - MS,A00010379,211621,720700,643.45
J. F. Drake State CC & TC,30018647,Xerox Corporation ,12/7/2023,56,Title III (Activity 1),Service Contracts on Equipment -OOS,A00010379,211631,751400,643.45
J. F. Drake State CC & TC,30018647,Xerox Corporation ,12/7/2023,87.79,Title III (Activity 1),Maintenance & Repairs  - OOS,A00010379,211631,751100,643.45
J. F. Drake State CC & TC,30018647,Xerox Corporation ,12/7/2023,213.37,Title III (Activity 1),Technology - non capitalized - MS,A00010379,211631,720700,643.45
J. F. Drake State CC & TC,30018647,Xerox Corporation ,12/7/2023,270.29,Title III (Activity 6),Maintenance & Repairs  - OOS,A00010379,211636,751100,643.45
J. F. Drake State CC & TC,900014299,Russell Octavia,10/13/2023,2012.52,Future Act (Activity 1),Payroll,A01582623,250233,,2012.52
J. F. Drake State CC & TC,900014300,Crawford Rosie,10/13/2023,389.52,Future Act (Activity 1),Payroll,A00136204,250233,,389.52
J. F. Drake State CC & TC,900014301,Douglas Sanitha,10/13/2023,1663.58,Future Act (Activity 1),Payroll,A00181632,250233,,1663.58
J. F. Drake State CC & TC,900014302,Hambrick Taquina,10/13/2023,738.47,Future Act (Activity 1),Payroll,A00154007,250233,,738.47
J. F. Drake State CC & TC,900014303,Mahone Amy,10/13/2023,2878.12,Unrestricted Shared Services,Payroll,A00023129,110100,,2878.12
J. F. Drake State CC & TC,900014304,Student Payment,10/13/2023,1065,NASA Grant,Payroll,A00335874,217210,,1065
J. F. Drake State CC & TC,900014305,Goodloe Lardell,10/13/2023,87.51,Meta Comm. Action Grant(Facebook),Payroll,A00124688,240520,,87.51
J. F. Drake State CC & TC,900014306,Augustin Lysa,10/13/2023,1330.38,AE-State Regular 2XX2-2XX3,Payroll,A01332720,224130,,1330.38
J. F. Drake State CC & TC,900014307,Bohl James,10/13/2023,254.64,AE-State Regular 2XX2-2XX3,Payroll,A00164765,224130,,254.64
J. F. Drake State CC & TC,900014308,Harris Willie,10/13/2023,504,AE-State Regular 2XX2-2XX3,Payroll,A02374163,224130,,504
J. F. Drake State CC & TC,900014309,Hinton Doris,10/13/2023,2878.12,Unrestricted Shared Services,Payroll,A00157355,110100,,2878.12
J. F. Drake State CC & TC,900014310,Hogans Anicia,10/13/2023,747.77,Mentor Protege Training 2XX1-2XX2,Payroll,A01739708,225520,,747.77
J. F. Drake State CC & TC,900014311,Student Payment,10/13/2023,915,NASA Grant,Payroll,A02279881,217210,,915
J. F. Drake State CC & TC,900014312,Crosby Tomacenia,10/13/2023,1124.66,Title III (Activity 5),Payroll,A00244454,211635,,1124.66
J. F. Drake State CC & TC,900014313,Howard Rachel,10/13/2023,469.4,Title III (Activity 5),Payroll,A00293867,211635,,469.4
J. F. Drake State CC & TC,900014314,Malone Terrell,10/13/2023,1506.62,Title III (Activity 5),Payroll,A00936576,211635,,1506.62
J. F. Drake State CC & TC,900014315,Student Payment,10/13/2023,333,CWS X3-X4,Payroll,A02344796,210440,,333
J. F. Drake State CC & TC,900014316,Crutcher Marcus,10/13/2023,2011.72,Unrestricted Shared Services,Payroll,A01330044,110100,,2011.72
J. F. Drake State CC & TC,900014317,Student Payment,10/13/2023,1080,CWS X3-X4,Payroll,A02389915,210440,,1080
J. F. Drake State CC & TC,900014318,Student Payment,10/13/2023,261,CWS X3-X4,Payroll,A01343618,210440,,261
J. F. Drake State CC & TC,900014319,Student Payment,10/13/2023,1062,CWS X3-X4,Payroll,A01347175,210440,,1062
J. F. Drake State CC & TC,900014320,Student Payment,10/13/2023,297,CWS X3-X4,Payroll,A02275447,210440,,297
J. F. Drake State CC & TC,900014321,Student Payment,10/13/2023,508.5,CWS X3-X4,Payroll,A00357964,210440,,508.5
J. F. Drake State CC & TC,900014322,Student Payment,10/13/2023,342,CWS X3-X4,Payroll,A02461351,210440,,342
J. F. Drake State CC & TC,900014323,Hoang Jimmy,10/13/2023,1032.84,Unrestricted Shared Services,Payroll,A02356853,110100,,1032.84
J. F. Drake State CC & TC,900014324,Humphrey Jessie,10/13/2023,2296.67,Unrestricted Shared Services,Payroll,A01331555,110100,,2296.67
J. F. Drake State CC & TC,900014325,Pepic Flores Azra,10/13/2023,581.4,NASA MUREP Grant,Payroll,A02484522,217212,,581.4
J. F. Drake State CC & TC,900014326,Mullins John,10/31/2023,7575.33,Unrestricted Shared Services,Payroll,A02494335,110100,,7575.33
J. F. Drake State CC & TC,900014327,Sims Patricia,10/31/2023,19066.67,Unrestricted Shared Services,Payroll,A01346009,110100,,19066.67
J. F. Drake State CC & TC,900014328,Bibb Bonnie,10/31/2023,8145.11,Unrestricted Shared Services,Payroll,A00720392,110100,,8145.11
J. F. Drake State CC & TC,900014329,Davis Mattie,10/31/2023,9212.33,Unrestricted Shared Services,Payroll,A00014505,110100,,9212.33
J. F. Drake State CC & TC,900014330,Ennis Tina,10/31/2023,7341.89,Unrestricted Shared Services,Payroll,A00100723,110100,,7341.89
J. F. Drake State CC & TC,900014331,Mbuguje Mukesha,10/31/2023,6509.08,Unrestricted Shared Services,Payroll,A00171785,110100,,6509.08
J. F. Drake State CC & TC,900014332,McLaughlin Stephanie,10/31/2023,6142.11,Unrestricted Shared Services,Payroll,A00207211,110100,,6142.11
J. F. Drake State CC & TC,900014333,Sims Rebecca,10/31/2023,3962.67,Future Act (Activity 1),Payroll,A01389937,250243,,3962.67
J. F. Drake State CC & TC,900014334,Burruss Lauren,10/31/2023,779.04,Future Act (Activity 1),Payroll,A00075653,250233,,7632.6
J. F. Drake State CC & TC,900014334,Burruss Lauren,10/31/2023,6853.56,Future Act (Activity 1),Payroll,A00075653,250243,,7632.6
J. F. Drake State CC & TC,900014335,Logan Amanda,10/31/2023,389.52,Unrestricted Shared Services,Payroll,A00195113,110100,,389.52
J. F. Drake State CC & TC,900014336,Pfeiffer Carl,10/31/2023,6407.44,Unrestricted Shared Services,Payroll,A02402002,110100,,6407.44
J. F. Drake State CC & TC,900014337,Ward Henry,10/31/2023,779.04,Unrestricted Shared Services,Payroll,A02486948,110100,,779.04
J. F. Drake State CC & TC,900014338,Ward Thronzo,10/31/2023,1168.56,Unrestricted Shared Services,Payroll,A01392375,110100,,1168.56
J. F. Drake State CC & TC,900014339,Johnson Claudine,10/31/2023,779.04,Unrestricted Shared Services,Payroll,A01365247,110100,,779.04
J. F. Drake State CC & TC,900014340,Barnes Nelson,10/31/2023,779.04,Unrestricted Shared Services,Payroll,A01335388,110100,,779.04
J. F. Drake State CC & TC,900014341,Collins Cedarric,10/31/2023,608.63,Unrestricted Shared Services,Payroll,A00219562,110100,,608.63
J. F. Drake State CC & TC,900014342,Owens Lydia,10/31/2023,6887.41,Unrestricted Shared Services,Payroll,A00372233,110100,,6887.41
J. F. Drake State CC & TC,900014343,Pearson Ed,10/31/2023,365.18,Unrestricted Shared Services,Payroll,A02284319,110100,,365.18
J. F. Drake State CC & TC,900014344,Perry Michael,10/31/2023,779.04,Unrestricted Shared Services,Payroll,A02411442,110100,,779.04
J. F. Drake State CC & TC,900014345,Smothers Deloris,10/31/2023,1168.56,Unrestricted Shared Services,Payroll,A01329972,110100,,1168.56
J. F. Drake State CC & TC,900014346,Sullivan Nathan,10/31/2023,389.52,Unrestricted Shared Services,Payroll,A00356374,110100,,389.52
J. F. Drake State CC & TC,900014347,Clark Tammie,10/31/2023,160,GA-AL LSAMP NSF HRD 1305041 X9-X0,Payroll,A00921161,210500,,4933.92
J. F. Drake State CC & TC,900014347,Clark Tammie,10/31/2023,4773.92,Unrestricted Shared Services,Payroll,A00921161,110100,,4933.92
J. F. Drake State CC & TC,900014348,Zatowski Jeanette,10/31/2023,3694.42,Unrestricted Shared Services,Payroll,A01333531,110100,,3694.42
J. F. Drake State CC & TC,900014349,Goodloe Lardell,10/31/2023,7697.56,Unrestricted Shared Services,Payroll,A00124688,110100,,7697.56
J. F. Drake State CC & TC,900014350,Cain Jordan,10/31/2023,1298.4,Unrestricted Shared Services,Payroll,A01982026,110100,,1298.4
J. F. Drake State CC & TC,900014351,Williams Jeffrey,10/31/2023,649.2,Unrestricted Shared Services,Payroll,A01332582,110100,,649.2
J. F. Drake State CC & TC,900014352,Rousseau John,10/31/2023,1168.56,Unrestricted Shared Services,Payroll,A02006023,110100,,1168.56
J. F. Drake State CC & TC,900014353,Winchester Brandi,10/31/2023,5140.17,Unrestricted Shared Services,Payroll,A01344818,110100,,5140.17
J. F. Drake State CC & TC,900014354,Winn George,10/31/2023,6688.85,Unrestricted Shared Services,Payroll,A01339778,110100,,6688.85
J. F. Drake State CC & TC,900014355,Forbes Edwin,10/31/2023,5406.92,Unrestricted Shared Services,Payroll,A01340082,110100,,5406.92
J. F. Drake State CC & TC,900014356,Forbes Jack,10/31/2023,1168.56,Unrestricted Shared Services,Payroll,A00367960,110100,,1168.56
J. F. Drake State CC & TC,900014357,Green Tiffany,10/31/2023,1947.6,Unrestricted Shared Services,Payroll,A00243041,110100,,1947.6
J. F. Drake State CC & TC,900014358,Foster Rashanda,10/31/2023,1168.56,Unrestricted Shared Services,Payroll,A00347913,110100,,1168.56
J. F. Drake State CC & TC,900014359,Kessio Japheth,10/31/2023,779.04,Unrestricted Shared Services,Payroll,A00294647,110100,,779.04
J. F. Drake State CC & TC,900014360,Canady Charlotte,10/31/2023,779.04,Unrestricted Shared Services,Payroll,A00123882,110100,,779.04
J. F. Drake State CC & TC,900014361,Collins Robin,10/31/2023,779.04,Unrestricted Shared Services,Payroll,A01375303,110100,,779.04
J. F. Drake State CC & TC,900014362,McCastle-Arutere Toye,10/31/2023,500,GA-AL LSAMP NSF HRD 1305041 X9-X0,Payroll,A01331375,210500,,4231.67
J. F. Drake State CC & TC,900014362,McCastle-Arutere Toye,10/31/2023,3731.67,Unrestricted Shared Services,Payroll,A01331375,110100,,4231.67
J. F. Drake State CC & TC,900014363,Wheeler Eunice,10/31/2023,6479.87,Unrestricted Shared Services,Payroll,A00208580,110100,,6479.87
J. F. Drake State CC & TC,900014364,Winston Samoun,10/31/2023,1428.24,Unrestricted Shared Services,Payroll,A02510738,110100,,1428.24
J. F. Drake State CC & TC,900014365,Alexander Jamel,10/31/2023,454.44,Unrestricted Shared Services,Payroll,A02514372,110100,,454.44
J. F. Drake State CC & TC,900014366,Peeples-Rice Alethea,10/31/2023,4339.92,Unrestricted Shared Services,Payroll,A00036143,110100,,4339.92
J. F. Drake State CC & TC,900014367,Young-Parker Delores,10/31/2023,454.44,Unrestricted Shared Services,Payroll,A00100017,110100,,454.44
J. F. Drake State CC & TC,900014368,Davis Angela,10/31/2023,389.52,Unrestricted Shared Services,Payroll,A02408677,110100,,389.52
J. F. Drake State CC & TC,900014369,Wilson Tracey,10/31/2023,389.52,Unrestricted Shared Services,Payroll,A01340684,110100,,389.52
J. F. Drake State CC & TC,900014370,Fields Aisha,10/31/2023,4375,AE-State Regular 2XX3-2XX4,Payroll,A00222614,224140,,4375
J. F. Drake State CC & TC,900014371,Giambrone David,10/31/2023,389.52,Unrestricted Shared Services,Payroll,A00215353,110100,,389.52
J. F. Drake State CC & TC,900014372,Williams Cornelius,10/31/2023,454.44,Unrestricted Shared Services,Payroll,A00245146,110100,,454.44
J. F. Drake State CC & TC,900014373,Bridges Ulrekia,10/31/2023,908.88,Unrestricted Shared Services,Payroll,A00340252,110100,,908.88
J. F. Drake State CC & TC,900014374,Doran Brittney,10/31/2023,5072.28,Unrestricted Shared Services,Payroll,A00348365,110100,,5072.28
J. F. Drake State CC & TC,900014375,Little Bertha,10/31/2023,34,Title III (Activity 6),Payroll,A00143830,211636,,5865.78
J. F. Drake State CC & TC,900014375,Little Bertha,10/31/2023,5831.78,Unrestricted Shared Services,Payroll,A00143830,110100,,5865.78
J. F. Drake State CC & TC,900014376,Pruitt Marquita,10/31/2023,2337.12,Unrestricted Shared Services,Payroll,A00206349,110100,,2337.12
J. F. Drake State CC & TC,900014377,Sales Lashun,10/31/2023,1558.08,Unrestricted Shared Services,Payroll,A01337389,110100,,1558.08
J. F. Drake State CC & TC,900014378,Sams Donna,10/31/2023,1558.08,Unrestricted Shared Services,Payroll,A00281376,110100,,1558.08
J. F. Drake State CC & TC,900014379,Tate Tralandar,10/31/2023,4154.88,Unrestricted Shared Services,Payroll,A01334088,110100,,4154.88
J. F. Drake State CC & TC,900014380,Williams Kelly,10/31/2023,6491.46,Unrestricted Shared Services,Payroll,A01347480,110100,,6491.46
J. F. Drake State CC & TC,900014381,Snell Larry,10/31/2023,4786.67,Unrestricted Shared Services,Payroll,A02396325,110100,,4786.67
J. F. Drake State CC & TC,900014382,Swaim Richard,10/31/2023,6365.22,Unrestricted Shared Services,Payroll,A01327524,110100,,6365.22
J. F. Drake State CC & TC,900014383,Baugher Christian,10/31/2023,649.2,Unrestricted Shared Services,Payroll,A00807001,110100,,649.2
J. F. Drake State CC & TC,900014384,Bevel Joseph,10/31/2023,6231.78,Unrestricted Shared Services,Payroll,A01343178,110100,,6231.78
J. F. Drake State CC & TC,900014385,Johnson Jeremy,10/31/2023,1298.4,Unrestricted Shared Services,Payroll,A00820842,110100,,1298.4
J. F. Drake State CC & TC,900014386,Rafferty Kory,10/31/2023,6630.33,Unrestricted Shared Services,Payroll,A01342025,110100,,6630.33
J. F. Drake State CC & TC,900014387,Gilliland Regina,10/31/2023,4587.58,Unrestricted Shared Services,Payroll,A00722211,110100,,4587.58
J. F. Drake State CC & TC,900014388,House Sharah,10/31/2023,3350.17,Unrestricted Shared Services,Payroll,A00242272,110100,,3350.17
J. F. Drake State CC & TC,900014389,Boyd Lana,10/31/2023,3694.42,Unrestricted Shared Services,Payroll,A02499185,110100,,3694.42
J. F. Drake State CC & TC,900014390,Henderson Carolyn,10/31/2023,12.75,Title III (Activity 1),Payroll,A00371371,211631,,11049.01
J. F. Drake State CC & TC,900014390,Henderson Carolyn,10/31/2023,11036.26,Unrestricted Shared Services,Payroll,A00371371,110100,,11049.01
J. F. Drake State CC & TC,900014391,Mayer Levi,10/31/2023,7580.25,Unrestricted Shared Services,Payroll,A02369381,110100,,7580.25
J. F. Drake State CC & TC,900014392,McKee Katelyn,10/31/2023,12.75,Title III (Activity 1),Payroll,A00270935,211621,,5135.17
J. F. Drake State CC & TC,900014392,McKee Katelyn,10/31/2023,5122.42,NTIA Grant,Payroll,A00270935,217320,,5135.17
J. F. Drake State CC & TC,900014393,Hays David,10/31/2023,4319,Unrestricted Shared Services,Payroll,A00682521,110100,,4319
J. F. Drake State CC & TC,900014394,Borden Dennis,10/31/2023,6320,Unrestricted Shared Services,Payroll,A00293168,110100,,6320
J. F. Drake State CC & TC,900014395,Clift Carla,10/31/2023,7742.67,Unrestricted Shared Services,Payroll,A00025330,110100,,7742.67
J. F. Drake State CC & TC,900014396,Bell Angela,10/31/2023,10856.84,Unrestricted Shared Services,Payroll,A00196556,110100,,10856.84
J. F. Drake State CC & TC,900014397,Pearce Regina,10/31/2023,4141.25,Title III (Activity 5),Payroll,A01389738,211645,,4141.25
J. F. Drake State CC & TC,900014398,Jones Donyale,10/31/2023,4498.67,Unrestricted Shared Services,Payroll,A00125671,110100,,4498.67
J. F. Drake State CC & TC,900014399,Jackson Taylor,10/31/2023,1570.72,Title III (Activity 5),Payroll,A02500092,211645,,1570.72
J. F. Drake State CC & TC,900014400,Lawrence Kia,10/31/2023,1802.75,Title III (Activity 5),Payroll,A01384880,211645,,3626.75
J. F. Drake State CC & TC,900014400,Lawrence Kia,10/31/2023,1824,Unrestricted Shared Services,Payroll,A01384880,110100,,3626.75
J. F. Drake State CC & TC,900014401,Matthews Adrienne,10/31/2023,4876.25,Unrestricted Shared Services,Payroll,A00103585,110100,,4876.25
J. F. Drake State CC & TC,900014402,Hambrick Neoka,10/31/2023,4408.92,Unrestricted Shared Services,Payroll,A00038569,110100,,4408.92
J. F. Drake State CC & TC,900014403,Morrison Bruce,10/31/2023,5480.17,Unrestricted Shared Services,Payroll,A00168808,110100,,5480.17
J. F. Drake State CC & TC,900014404,Olinger Jennifer,10/31/2023,8261,Unrestricted Shared Services,Payroll,A00269723,110100,,8261
J. F. Drake State CC & TC,900014405,Bates Sidney,10/31/2023,21.25,Unrestricted Shared Services,Payroll,A01120927,110100,,2823.33
J. F. Drake State CC & TC,900014405,Bates Sidney,10/31/2023,2802.08,Title III (Activity 5),Payroll,A01120927,211645,,2823.33
J. F. Drake State CC & TC,900014406,Drake Robert,10/31/2023,3180.75,Unrestricted Shared Services,Payroll,A02343555,110100,,3180.75
J. F. Drake State CC & TC,900014407,Harlow Emily,10/31/2023,21.25,Unrestricted Shared Services,Payroll,A01345136,110100,,2912.58
J. F. Drake State CC & TC,900014407,Harlow Emily,10/31/2023,2891.33,Title III (Activity 5),Payroll,A01345136,211645,,2912.58
J. F. Drake State CC & TC,900014408,Ward Mattavia,10/31/2023,8282.25,Unrestricted Shared Services,Payroll,A00032628,110100,,8282.25
J. F. Drake State CC & TC,900014409,Alexander Akeem,10/31/2023,9642.92,Unrestricted Shared Services,Payroll,A00010030,110100,,9642.92
J. F. Drake State CC & TC,900014410,Chavers Audrey,10/31/2023,925.87,Title III (Activity A Prog Admin),Payroll,A00128176,211648,,4408.92
J. F. Drake State CC & TC,900014410,Chavers Audrey,10/31/2023,3483.05,Unrestricted Shared Services,Payroll,A00128176,110100,,4408.92
J. F. Drake State CC & TC,900014411,Harris Katrina,10/31/2023,8661,Unrestricted Shared Services,Payroll,A00018379,110100,,8661
J. F. Drake State CC & TC,900014412,Patterson Christina,10/31/2023,3873.08,Unrestricted Shared Services,Payroll,A00267651,110100,,3873.08
J. F. Drake State CC & TC,900014413,Pepic Flores Azra,10/31/2023,1791.97,NASA MUREP Grant,Payroll,A02484522,217212,,3812.71
J. F. Drake State CC & TC,900014413,Pepic Flores Azra,10/31/2023,2020.74,NTIA Grant,Payroll,A02484522,217320,,3812.71
J. F. Drake State CC & TC,900014414,Gurley Melonie,10/31/2023,4676.25,Unrestricted Shared Services,Payroll,A00148636,110100,,4676.25
J. F. Drake State CC & TC,900014415,Patton Tina,10/31/2023,3377.46,Unrestricted Shared Services,Payroll,A00321082,110100,,3377.46
J. F. Drake State CC & TC,900014416,Kingsbury Marina,10/31/2023,747.56,NASA MUREP Grant,Payroll,A02335508,217212,,2990.22
J. F. Drake State CC & TC,900014416,Kingsbury Marina,10/31/2023,2242.66,Unrestricted Shared Services,Payroll,A02335508,110100,,2990.22
J. F. Drake State CC & TC,900014417,Parrish Tessa,10/31/2023,3962.67,Title III (Activity A Prog Admin),Payroll,A00164065,211648,,3962.67
J. F. Drake State CC & TC,900014418,Raymond Alice,10/31/2023,4511.32,Unrestricted Shared Services,Payroll,A00980260,110100,,10941.84
J. F. Drake State CC & TC,900014418,Raymond Alice,10/31/2023,6430.52,Title III (Activity 1),Payroll,A00980260,211641,,10941.84
J. F. Drake State CC & TC,900014419,Shotts Lesley,10/31/2023,1569.59,Title III (Activity A Prog Admin),Payroll,A01330530,211648,,8261
J. F. Drake State CC & TC,900014419,Shotts Lesley,10/31/2023,6691.41,Unrestricted Shared Services,Payroll,A01330530,110100,,8261
J. F. Drake State CC & TC,900014420,Swain Don,10/31/2023,5658.33,Unrestricted Shared Services,Payroll,A00264841,110100,,5658.33
J. F. Drake State CC & TC,900014421,Driskill ChrisAnn,10/31/2023,1913.87,Title III (Activity A Institution),Payroll,A02304224,211647,,3827.75
J. F. Drake State CC & TC,900014421,Driskill ChrisAnn,10/31/2023,1913.88,Drake Foundation,Payroll,A02304224,810264,,3827.75
J. F. Drake State CC & TC,900014422,Owen Daniel,10/31/2023,7039.08,Unrestricted Shared Services,Payroll,A00249589,110100,,7039.08
J. F. Drake State CC & TC,900014423,Yarbrough Lucy,10/31/2023,3248.25,Unrestricted Shared Services,Payroll,A01353412,110100,,3248.25
J. F. Drake State CC & TC,900014424,Clark Casey,10/31/2023,3070.08,Unrestricted Shared Services,Payroll,A00329845,110100,,3070.08
J. F. Drake State CC & TC,900014425,Harbin Glenn,10/31/2023,5301.08,Unrestricted Shared Services,Payroll,A01376780,110100,,5301.08
J. F. Drake State CC & TC,900014426,Harlow George,10/31/2023,3873.33,NTIA Grant,Payroll,A01334887,217320,,3873.33
J. F. Drake State CC & TC,900014427,Hernandez Anthony,10/31/2023,2445.08,Unrestricted Shared Services,Payroll,A00364847,110100,,2445.08
J. F. Drake State CC & TC,900014428,Bruski Matthew,10/31/2023,3962.67,Unrestricted Shared Services,Payroll,A02392384,110100,,3962.67
J. F. Drake State CC & TC,900014429,Bulluck Bruce,10/31/2023,8784.67,Unrestricted Shared Services,Payroll,A01328020,110100,,8784.67
J. F. Drake State CC & TC,900014430,Hamlet Archie,10/31/2023,2445.08,Unrestricted Shared Services,Payroll,A01345092,110100,,2445.08
J. F. Drake State CC & TC,900014431,Hampton Darlene,10/31/2023,3070.42,Unrestricted Shared Services,Payroll,A00199983,110100,,3070.42
J. F. Drake State CC & TC,900014432,McCarty Demetrius,10/31/2023,3249,Unrestricted Shared Services,Payroll,A01346876,110100,,3249
J. F. Drake State CC & TC,900014433,Russell Octavia,11/15/2023,1996.29,Future Act (Activity 1),Payroll,A01582623,250243,,1996.29
J. F. Drake State CC & TC,900014434,Crawford Rosie,11/15/2023,421.98,Future Act (Activity 1),Payroll,A00136204,250243,,421.98
J. F. Drake State CC & TC,900014435,Douglas Sanitha,11/15/2023,2158.59,Future Act (Activity 1),Payroll,A00181632,250243,,2158.59
J. F. Drake State CC & TC,900014436,Goering Erica,11/15/2023,1836.7,Future Act (Activity 1),Payroll,A00253286,250243,,1836.7
J. F. Drake State CC & TC,900014437,Hambrick Taquina,11/15/2023,757.4,Future Act (Activity 1),Payroll,A00154007,250243,,757.4
J. F. Drake State CC & TC,900014438,Mahone Amy,11/15/2023,3484.04,Unrestricted Shared Services,Payroll,A00023129,110100,,3484.04
J. F. Drake State CC & TC,900014439,Student Payment,11/15/2023,517.5,Mentor Protege Training 2XX1-2XX2,Payroll,A00269783,225520,,517.5
J. F. Drake State CC & TC,900014440,Student Payment,11/15/2023,1196.25,NASA Grant,Payroll,A00335874,217210,,1196.25
J. F. Drake State CC & TC,900014441,Augustin Lysa,11/15/2023,1447.08,AE-State Regular 2XX3-2XX4,Payroll,A01332720,224140,,1447.08
J. F. Drake State CC & TC,900014442,Bohl James,11/15/2023,509.28,AE-State Regular 2XX3-2XX4,Payroll,A00164765,224140,,509.28
J. F. Drake State CC & TC,900014443,Harris Willie,11/15/2023,856.8,AE-State Regular 2XX3-2XX4,Payroll,A02374163,224140,,856.8
J. F. Drake State CC & TC,900014444,Hinton Doris,11/15/2023,3294.69,Unrestricted Shared Services,Payroll,A00157355,110100,,3294.69
J. F. Drake State CC & TC,900014445,Student Payment,11/15/2023,510,NASA Grant,Payroll,A02279881,217210,,510
J. F. Drake State CC & TC,900014446,Crosby Tomacenia,11/15/2023,1283.81,Title III (Activity 5),Payroll,A00244454,211645,,1283.81
J. F. Drake State CC & TC,900014447,Howard Rachel,11/15/2023,509.18,Title III (Activity 5),Payroll,A00293867,211645,,509.18
J. F. Drake State CC & TC,900014448,Malone Terrell,11/15/2023,1612.72,Title III (Activity 5),Payroll,A00936576,211645,,1612.72
J. F. Drake State CC & TC,900014449,Student Payment,11/15/2023,1584,CWS X3-X4,Payroll,A02344796,210440,,1584
J. F. Drake State CC & TC,900014450,Crutcher Marcus,11/15/2023,2329.36,Unrestricted Shared Services,Payroll,A01330044,110100,,2329.36
J. F. Drake State CC & TC,900014451,Student Payment,11/15/2023,1485,CWS X3-X4,Payroll,A02389915,210440,,1485
J. F. Drake State CC & TC,900014452,Student Payment,11/15/2023,405,CWS X3-X4,Payroll,A01343618,210440,,405
J. F. Drake State CC & TC,900014453,Student Payment,11/15/2023,1170,CWS X3-X4,Payroll,A01347175,210440,,1170
J. F. Drake State CC & TC,900014454,Student Payment,11/15/2023,1372.5,CWS X3-X4,Payroll,A02275447,210440,,1372.5
J. F. Drake State CC & TC,900014455,Student Payment,11/15/2023,756,CWS X3-X4,Payroll,A00357964,210440,,756
J. F. Drake State CC & TC,900014456,Student Payment,11/15/2023,1476,CWS X3-X4,Payroll,A02461351,210440,,1476
J. F. Drake State CC & TC,900014457,Hoang Jimmy,11/15/2023,1168.74,Unrestricted Shared Services,Payroll,A02356853,110100,,1168.74
J. F. Drake State CC & TC,900014458,Humphrey Jessie,11/15/2023,2510.64,Unrestricted Shared Services,Payroll,A01331555,110100,,2510.64
J. F. Drake State CC & TC,900014459,Mullins John,11/30/2023,7562.58,Unrestricted Shared Services,Payroll,A02494335,110100,,7562.58
J. F. Drake State CC & TC,900014460,Sims Patricia,11/30/2023,19066.67,Unrestricted Shared Services,Payroll,A01346009,110100,,19066.67
J. F. Drake State CC & TC,900014461,Bibb Bonnie,11/30/2023,8145.11,Unrestricted Shared Services,Payroll,A00720392,110100,,8145.11
J. F. Drake State CC & TC,900014462,Davis Mattie,11/30/2023,9212.33,Unrestricted Shared Services,Payroll,A00014505,110100,,9212.33
J. F. Drake State CC & TC,900014463,Ennis Tina,11/30/2023,7341.89,Unrestricted Shared Services,Payroll,A00100723,110100,,7341.89
J. F. Drake State CC & TC,900014464,Mbuguje Mukesha,11/30/2023,6509.08,Unrestricted Shared Services,Payroll,A00171785,110100,,6509.08
J. F. Drake State CC & TC,900014465,McLaughlin Stephanie,11/30/2023,6142.11,Unrestricted Shared Services,Payroll,A00207211,110100,,6142.11
J. F. Drake State CC & TC,900014466,Sims Rebecca,11/30/2023,3962.67,Future Act (Activity 1),Payroll,A01389937,250243,,3962.67
J. F. Drake State CC & TC,900014467,Burruss Lauren,11/30/2023,7632.6,Future Act (Activity 1),Payroll,A00075653,250243,,7632.6
J. F. Drake State CC & TC,900014468,Logan Amanda,11/30/2023,389.52,Unrestricted Shared Services,Payroll,A00195113,110100,,389.52
J. F. Drake State CC & TC,900014469,Pfeiffer Carl,11/30/2023,6407.44,Unrestricted Shared Services,Payroll,A02402002,110100,,6407.44
J. F. Drake State CC & TC,900014470,Ward Henry,11/30/2023,779.04,Unrestricted Shared Services,Payroll,A02486948,110100,,779.04
J. F. Drake State CC & TC,900014471,Ward Thronzo,11/30/2023,1168.56,Unrestricted Shared Services,Payroll,A01392375,110100,,1168.56
J. F. Drake State CC & TC,900014472,Johnson Claudine,11/30/2023,779.04,Unrestricted Shared Services,Payroll,A01365247,110100,,779.04
J. F. Drake State CC & TC,900014473,Barnes Nelson,11/30/2023,779.04,Unrestricted Shared Services,Payroll,A01335388,110100,,779.04
J. F. Drake State CC & TC,900014474,Collins Cedarric,11/30/2023,608.63,Unrestricted Shared Services,Payroll,A00219562,110100,,608.63
J. F. Drake State CC & TC,900014475,Owens Lydia,11/30/2023,6887.41,Unrestricted Shared Services,Payroll,A00372233,110100,,6887.41
J. F. Drake State CC & TC,900014476,Pearson Ed,11/30/2023,365.18,Unrestricted Shared Services,Payroll,A02284319,110100,,365.18
J. F. Drake State CC & TC,900014477,Perry Michael,11/30/2023,779.04,Unrestricted Shared Services,Payroll,A02411442,110100,,779.04
J. F. Drake State CC & TC,900014478,Smothers Deloris,11/30/2023,1168.56,Unrestricted Shared Services,Payroll,A01329972,110100,,1168.56
J. F. Drake State CC & TC,900014479,Sullivan Nathan,11/30/2023,389.52,Unrestricted Shared Services,Payroll,A00356374,110100,,389.52
J. F. Drake State CC & TC,900014480,Clark Tammie,11/30/2023,-160,GA-AL LSAMP NSF HRD 1305041 X9-X0,Payroll,A00921161,210500,,4613.92
J. F. Drake State CC & TC,900014480,Clark Tammie,11/30/2023,4773.92,Unrestricted Shared Services,Payroll,A00921161,110100,,4613.92
J. F. Drake State CC & TC,900014481,Heard GaTerrilyn,11/30/2023,1541.85,Unrestricted Shared Services,Payroll,A01124435,110100,,1541.85
J. F. Drake State CC & TC,900014482,Zatowski Jeanette,11/30/2023,3694.42,Unrestricted Shared Services,Payroll,A01333531,110100,,3694.42
J. F. Drake State CC & TC,900014483,Goodloe Lardell,11/30/2023,7697.56,Unrestricted Shared Services,Payroll,A00124688,110100,,7697.56
J. F. Drake State CC & TC,900014484,Cain Jordan,11/30/2023,1298.4,Unrestricted Shared Services,Payroll,A01982026,110100,,1298.4
J. F. Drake State CC & TC,900014485,Williams Jeffrey,11/30/2023,649.2,Unrestricted Shared Services,Payroll,A01332582,110100,,649.2
J. F. Drake State CC & TC,900014486,Rousseau John,11/30/2023,1168.56,Unrestricted Shared Services,Payroll,A02006023,110100,,1168.56
J. F. Drake State CC & TC,900014487,Winchester Brandi,11/30/2023,5140.17,Unrestricted Shared Services,Payroll,A01344818,110100,,5140.17
J. F. Drake State CC & TC,900014488,Winn George,11/30/2023,6688.85,Unrestricted Shared Services,Payroll,A01339778,110100,,6688.85
J. F. Drake State CC & TC,900014489,Forbes Edwin,11/30/2023,5406.92,Unrestricted Shared Services,Payroll,A01340082,110100,,5406.92
J. F. Drake State CC & TC,900014490,Forbes Jack,11/30/2023,1168.56,Unrestricted Shared Services,Payroll,A00367960,110100,,1168.56
J. F. Drake State CC & TC,900014491,Green Tiffany,11/30/2023,1947.6,Unrestricted Shared Services,Payroll,A00243041,110100,,1947.6
J. F. Drake State CC & TC,900014492,Foster Rashanda,11/30/2023,1168.56,Unrestricted Shared Services,Payroll,A00347913,110100,,1168.56
J. F. Drake State CC & TC,900014493,Kessio Japheth,11/30/2023,779.04,Unrestricted Shared Services,Payroll,A00294647,110100,,779.04
J. F. Drake State CC & TC,900014494,Canady Charlotte,11/30/2023,779.04,Unrestricted Shared Services,Payroll,A00123882,110100,,779.04
J. F. Drake State CC & TC,900014495,Collins Robin,11/30/2023,779.04,Unrestricted Shared Services,Payroll,A01375303,110100,,779.04
J. F. Drake State CC & TC,900014496,McCastle-Arutere Toye,11/30/2023,500,GA-AL LSAMP NSF HRD 1305041 X9-X0,Payroll,A01331375,210500,,4231.67
J. F. Drake State CC & TC,900014496,McCastle-Arutere Toye,11/30/2023,3731.67,Unrestricted Shared Services,Payroll,A01331375,110100,,4231.67
J. F. Drake State CC & TC,900014497,Wheeler Eunice,11/30/2023,6479.87,Unrestricted Shared Services,Payroll,A00208580,110100,,6479.87
J. F. Drake State CC & TC,900014498,Winston Samoun,11/30/2023,1428.24,Unrestricted Shared Services,Payroll,A02510738,110100,,1428.24
J. F. Drake State CC & TC,900014499,Alexander Jamel,11/30/2023,454.44,Unrestricted Shared Services,Payroll,A02514372,110100,,454.44
J. F. Drake State CC & TC,900014500,Peeples-Rice Alethea,11/30/2023,4339.92,Unrestricted Shared Services,Payroll,A00036143,110100,,4339.92
J. F. Drake State CC & TC,900014501,Young-Parker Delores,11/30/2023,454.44,Unrestricted Shared Services,Payroll,A00100017,110100,,454.44
J. F. Drake State CC & TC,900014502,Davis Angela,11/30/2023,389.52,Unrestricted Shared Services,Payroll,A02408677,110100,,389.52
J. F. Drake State CC & TC,900014503,Wilson Tracey,11/30/2023,389.52,Unrestricted Shared Services,Payroll,A01340684,110100,,389.52
J. F. Drake State CC & TC,900014504,Fields Aisha,11/30/2023,4375,AE-State Regular 2XX3-2XX4,Payroll,A00222614,224140,,4375
J. F. Drake State CC & TC,900014505,Giambrone David,11/30/2023,389.52,Unrestricted Shared Services,Payroll,A00215353,110100,,389.52
J. F. Drake State CC & TC,900014506,Williams Cornelius,11/30/2023,454.44,Unrestricted Shared Services,Payroll,A00245146,110100,,454.44
J. F. Drake State CC & TC,900014507,Bridges Ulrekia,11/30/2023,908.88,Unrestricted Shared Services,Payroll,A00340252,110100,,908.88
J. F. Drake State CC & TC,900014508,Doran Brittney,11/30/2023,5072.28,Unrestricted Shared Services,Payroll,A00348365,110100,,5072.28
J. F. Drake State CC & TC,900014509,Little Bertha,11/30/2023,5831.78,Unrestricted Shared Services,Payroll,A00143830,110100,,5831.78
J. F. Drake State CC & TC,900014510,Pruitt Marquita,11/30/2023,2337.12,Unrestricted Shared Services,Payroll,A00206349,110100,,2337.12
J. F. Drake State CC & TC,900014511,Sales Lashun,11/30/2023,1558.08,Unrestricted Shared Services,Payroll,A01337389,110100,,1558.08
J. F. Drake State CC & TC,900014512,Sams Donna,11/30/2023,1558.08,Unrestricted Shared Services,Payroll,A00281376,110100,,1558.08
J. F. Drake State CC & TC,900014513,Tate Tralandar,11/30/2023,2986.32,Unrestricted Shared Services,Payroll,A01334088,110100,,2986.32
J. F. Drake State CC & TC,900014514,Williams Kelly,11/30/2023,6361.62,Unrestricted Shared Services,Payroll,A01347480,110100,,6361.62
J. F. Drake State CC & TC,900014515,Snell Larry,11/30/2023,4773.92,Unrestricted Shared Services,Payroll,A02396325,110100,,4773.92
J. F. Drake State CC & TC,900014516,Swaim Richard,11/30/2023,6365.22,Unrestricted Shared Services,Payroll,A01327524,110100,,6365.22
J. F. Drake State CC & TC,900014517,Baugher Christian,11/30/2023,649.2,Unrestricted Shared Services,Payroll,A00807001,110100,,649.2
J. F. Drake State CC & TC,900014518,Bevel Joseph,11/30/2023,6231.78,Unrestricted Shared Services,Payroll,A01343178,110100,,6231.78
J. F. Drake State CC & TC,900014519,Johnson Jeremy,11/30/2023,1298.4,Unrestricted Shared Services,Payroll,A00820842,110100,,1298.4
J. F. Drake State CC & TC,900014520,Rafferty Kory,11/30/2023,6630.33,Unrestricted Shared Services,Payroll,A01342025,110100,,6630.33
J. F. Drake State CC & TC,900014521,Gilliland Regina,11/30/2023,4587.58,Unrestricted Shared Services,Payroll,A00722211,110100,,4587.58
J. F. Drake State CC & TC,900014522,House Sharah,11/30/2023,3337.42,Unrestricted Shared Services,Payroll,A00242272,110100,,3337.42
J. F. Drake State CC & TC,900014523,Boyd Lana,11/30/2023,3694.42,Unrestricted Shared Services,Payroll,A02499185,110100,,3694.42
J. F. Drake State CC & TC,900014524,Henderson Carolyn,11/30/2023,11023.51,Unrestricted Shared Services,Payroll,A00371371,110100,,11023.51
J. F. Drake State CC & TC,900014525,Mayer Levi,11/30/2023,7554.75,Unrestricted Shared Services,Payroll,A02369381,110100,,7554.75
J. F. Drake State CC & TC,900014526,McKee Katelyn,11/30/2023,5122.42,NTIA Grant,Payroll,A00270935,217320,,5122.42
J. F. Drake State CC & TC,900014527,Hays David,11/30/2023,4319,Unrestricted Shared Services,Payroll,A00682521,110100,,4319
J. F. Drake State CC & TC,900014528,Borden Dennis,11/30/2023,6320,Unrestricted Shared Services,Payroll,A00293168,110100,,6320
J. F. Drake State CC & TC,900014529,Clift Carla,11/30/2023,7742.67,Unrestricted Shared Services,Payroll,A00025330,110100,,7742.67
J. F. Drake State CC & TC,900014530,Bell Angela,11/30/2023,10856.84,Unrestricted Shared Services,Payroll,A00196556,110100,,10856.84
J. F. Drake State CC & TC,900014531,Pearce Regina,11/30/2023,4141.25,Title III (Activity 5),Payroll,A01389738,211645,,4141.25
J. F. Drake State CC & TC,900014532,Jones Donyale,11/30/2023,4498.67,Unrestricted Shared Services,Payroll,A00125671,110100,,4498.67
J. F. Drake State CC & TC,900014533,Jackson Taylor,11/30/2023,190.39,Title III (Activity 5),Payroll,A02500092,211645,,190.39
J. F. Drake State CC & TC,900014534,Lawrence Kia,11/30/2023,1802.75,Title III (Activity 5),Payroll,A01384880,211645,,3605.5
J. F. Drake State CC & TC,900014534,Lawrence Kia,11/30/2023,1802.75,Unrestricted Shared Services,Payroll,A01384880,110100,,3605.5
J. F. Drake State CC & TC,900014535,Matthews Adrienne,11/30/2023,4855,Unrestricted Shared Services,Payroll,A00103585,110100,,4855
J. F. Drake State CC & TC,900014536,Hambrick Neoka,11/30/2023,4408.92,Unrestricted Shared Services,Payroll,A00038569,110100,,4408.92
J. F. Drake State CC & TC,900014537,Morrison Bruce,11/30/2023,5480.17,Unrestricted Shared Services,Payroll,A00168808,110100,,5480.17
J. F. Drake State CC & TC,900014538,Olinger Jennifer,11/30/2023,8261,Unrestricted Shared Services,Payroll,A00269723,110100,,8261
J. F. Drake State CC & TC,900014539,Bates Sidney,11/30/2023,2802.08,Title III (Activity 5),Payroll,A01120927,211645,,2802.08
J. F. Drake State CC & TC,900014540,Drake Robert,11/30/2023,3159.5,Unrestricted Shared Services,Payroll,A02343555,110100,,3159.5
J. F. Drake State CC & TC,900014541,Harlow Emily,11/30/2023,2891.33,Title III (Activity 5),Payroll,A01345136,211645,,2891.33
J. F. Drake State CC & TC,900014542,Ward Mattavia,11/30/2023,8261,Unrestricted Shared Services,Payroll,A00032628,110100,,8261
J. F. Drake State CC & TC,900014543,Alexander Akeem,11/30/2023,9642.92,Unrestricted Shared Services,Payroll,A00010030,110100,,9642.92
J. F. Drake State CC & TC,900014544,Chavers Audrey,11/30/2023,837.69,Title III (Activity A Prog Admin),Payroll,A00128176,211648,,4408.92
J. F. Drake State CC & TC,900014544,Chavers Audrey,11/30/2023,3571.23,Unrestricted Shared Services,Payroll,A00128176,110100,,4408.92
J. F. Drake State CC & TC,900014545,Harris Katrina,11/30/2023,8661,Unrestricted Shared Services,Payroll,A00018379,110100,,8661
J. F. Drake State CC & TC,900014546,Patterson Christina,11/30/2023,3873.08,Unrestricted Shared Services,Payroll,A00267651,110100,,3873.08
J. F. Drake State CC & TC,900014547,Pepic Flores Azra,11/30/2023,594.91,NTIA Grant,Payroll,A02484522,217320,,3966.05
J. F. Drake State CC & TC,900014547,Pepic Flores Azra,11/30/2023,1427.78,NASA MUREP Grant,Payroll,A02484522,217212,,3966.05
J. F. Drake State CC & TC,900014547,Pepic Flores Azra,11/30/2023,1943.36,Unrestricted Shared Services,Payroll,A02484522,110100,,3966.05
J. F. Drake State CC & TC,900014548,Gurley Melonie,11/30/2023,4676.25,Unrestricted Shared Services,Payroll,A00148636,110100,,4676.25
J. F. Drake State CC & TC,900014549,Patton Tina,11/30/2023,3377.46,Unrestricted Shared Services,Payroll,A00321082,110100,,3377.46
J. F. Drake State CC & TC,900014550,Kingsbury Marina,11/30/2023,738.67,Unrestricted Shared Services,Payroll,A02335508,110100,,1616.34
J. F. Drake State CC & TC,900014550,Kingsbury Marina,11/30/2023,877.67,NASA MUREP Grant,Payroll,A02335508,217212,,1616.34
J. F. Drake State CC & TC,900014551,Parrish Tessa,11/30/2023,3962.67,Title III (Activity A Prog Admin),Payroll,A00164065,211648,,3962.67
J. F. Drake State CC & TC,900014552,Raymond Alice,11/30/2023,4427.57,Title III (Activity 1),Payroll,A00980260,211641,,10941.84
J. F. Drake State CC & TC,900014552,Raymond Alice,11/30/2023,6514.27,Unrestricted Shared Services,Payroll,A00980260,110100,,10941.84
J. F. Drake State CC & TC,900014553,Shotts Lesley,11/30/2023,908.71,Title III (Activity A Prog Admin),Payroll,A01330530,211648,,8261
J. F. Drake State CC & TC,900014553,Shotts Lesley,11/30/2023,7352.29,Unrestricted Shared Services,Payroll,A01330530,110100,,8261
J. F. Drake State CC & TC,900014554,Swain Don,11/30/2023,5658.33,Unrestricted Shared Services,Payroll,A00264841,110100,,5658.33
J. F. Drake State CC & TC,900014555,Driskill ChrisAnn,11/30/2023,1913.87,Title III (Activity A Institution),Payroll,A02304224,211647,,3827.75
J. F. Drake State CC & TC,900014555,Driskill ChrisAnn,11/30/2023,1913.88,Drake Foundation,Payroll,A02304224,810264,,3827.75
J. F. Drake State CC & TC,900014556,Owen Daniel,11/30/2023,7039.08,Unrestricted Shared Services,Payroll,A00249589,110100,,7039.08
J. F. Drake State CC & TC,900014557,Yarbrough Lucy,11/30/2023,3248.25,Unrestricted Shared Services,Payroll,A01353412,110100,,3248.25
J. F. Drake State CC & TC,900014558,Clark Casey,11/30/2023,3070.08,Unrestricted Shared Services,Payroll,A00329845,110100,,3070.08
J. F. Drake State CC & TC,900014559,Harbin Glenn,11/30/2023,5301.08,Unrestricted Shared Services,Payroll,A01376780,110100,,5301.08
J. F. Drake State CC & TC,900014560,Harlow George,11/30/2023,979.47,NTIA Grant,Payroll,A01334887,217320,,979.47
J. F. Drake State CC & TC,900014561,Hernandez Anthony,11/30/2023,2445.08,Unrestricted Shared Services,Payroll,A00364847,110100,,2445.08
J. F. Drake State CC & TC,900014562,Bruski Matthew,11/30/2023,3962.67,Unrestricted Shared Services,Payroll,A02392384,110100,,3962.67
J. F. Drake State CC & TC,900014563,Bulluck Bruce,11/30/2023,8784.67,Unrestricted Shared Services,Payroll,A01328020,110100,,8784.67
J. F. Drake State CC & TC,900014564,Hamlet Archie,11/30/2023,2445.08,Unrestricted Shared Services,Payroll,A01345092,110100,,2445.08
J. F. Drake State CC & TC,900014565,Hampton Darlene,11/30/2023,3070.42,Unrestricted Shared Services,Payroll,A00199983,110100,,3070.42
J. F. Drake State CC & TC,900014566,McCarty Demetrius,11/30/2023,3249,Unrestricted Shared Services,Payroll,A01346876,110100,,3249
J. F. Drake State CC & TC,E1101934,WEX Inc ,10/3/2023,568.42,Unrestricted Shared Services,Gasoline & Oil - Motor Veh - OOS,A00010352,110100,750700,568.42
J. F. Drake State CC & TC,E1101935,WEX Inc ,10/3/2023,76.31,Unrestricted Shared Services,Materials and Supplies - MS,A00010352,110100,720500,239.96
J. F. Drake State CC & TC,E1101935,WEX Inc ,10/3/2023,163.65,Unrestricted Shared Services,Gasoline & Oil - Motor Veh - OOS,A00010352,110100,750700,239.96
J. F. Drake State CC & TC,E1101936,Payroll Payable,10/4/2023,17881.82,Payroll Clearing Fund,Payroll Payable,A00010262,120000,222000,17881.82
J. F. Drake State CC & TC,E1101938,Lowe's ,10/6/2023,498.45,Unrestricted Shared Services,Materials and Supplies - MS,A01351841,110100,720500,498.45
J. F. Drake State CC & TC,E1101939,Lowe's Company ,10/6/2023,1069.75,Unrestricted Shared Services,Materials and Supplies - MS,A01349933,110100,720500,2611.43
J. F. Drake State CC & TC,E1101939,Lowe's Company ,10/6/2023,1541.68,Unrestricted Shared Services,Maintenance & Repairs  - OOS,A01349933,110100,751100,2611.43
J. F. Drake State CC & TC,E1101940,Regions Bank ,10/9/2023,79.85,Unrestricted Shared Services,Subscriptions - OOS,A01361056,110100,751700,17135.1
J. F. Drake State CC & TC,E1101940,Regions Bank ,10/9/2023,100,Unrestricted Shared Services,Bank Card Fees - PS,A01361056,110100,730400,17135.1
J. F. Drake State CC & TC,E1101940,Regions Bank ,10/9/2023,520.75,Unrestricted Shared Services,Culinary Consumables,A01361056,110100,720200,17135.1
J. F. Drake State CC & TC,E1101940,Regions Bank ,10/9/2023,525,Unrestricted Shared Services,Registration Fees- IS,A01361056,110100,710700,17135.1
J. F. Drake State CC & TC,E1101940,Regions Bank ,10/9/2023,530.08,Unrestricted Shared Services,Lodging - IS,A01361056,110100,710300,17135.1
J. F. Drake State CC & TC,E1101940,Regions Bank ,10/9/2023,620.97,Unrestricted Shared Services,Short-Term Equipment Rentals - OOS,A01361056,110100,751600,17135.1
J. F. Drake State CC & TC,E1101940,Regions Bank ,10/9/2023,1250,Unrestricted Shared Services,Taxes & Licenses - OOS,A01361056,110100,751800,17135.1
J. F. Drake State CC & TC,E1101940,Regions Bank ,10/9/2023,1546.88,Unrestricted Shared Services,Maintenance & Repairs  - OOS,A01361056,110100,751100,17135.1
J. F. Drake State CC & TC,E1101940,Regions Bank ,10/9/2023,1560,Unrestricted Shared Services,Testing Expense,A01361056,110100,751015,17135.1
J. F. Drake State CC & TC,E1101940,Regions Bank ,10/9/2023,2077.6,Unrestricted Shared Services,Other Travel Expenses - OS,A01361056,110100,715600,17135.1
J. F. Drake State CC & TC,E1101940,Regions Bank ,10/9/2023,2146.23,Unrestricted Shared Services,Lodging - OS,A01361056,110100,715300,17135.1
J. F. Drake State CC & TC,E1101940,Regions Bank ,10/9/2023,2728.87,Unrestricted Shared Services,Materials and Supplies - MS,A01361056,110100,720500,17135.1
J. F. Drake State CC & TC,E1101940,Regions Bank ,10/9/2023,3448.87,Unrestricted Shared Services,Internet - UC,A01361056,110100,740400,17135.1
J. F. Drake State CC & TC,E1101941,Payroll Payable,10/17/2023,792.53,Payroll Clearing Fund,Payroll Payable,A01372079,120000,220800,4376.29
J. F. Drake State CC & TC,E1101941,Payroll Payable,10/17/2023,3583.76,Payroll Clearing Fund,Payroll Payable,A01372079,120000,220900,4376.29
J. F. Drake State CC & TC,E1101942,Payroll Payable,10/17/2023,284.85,Payroll Clearing Fund,Payroll Payable,A00010231,120000,220200,284.85
J. F. Drake State CC & TC,E1101943,State of Alabama ,10/25/2023,1211.24,Unrestricted Shared Services,Unemployment Compensation - FB,A00010262,110100,620800,1211.24
J. F. Drake State CC & TC,E1101944,Payroll Payable,10/31/2023,294.5,Payroll Clearing Fund,Payroll Payable,A01365311,120000,221100,294.5
J. F. Drake State CC & TC,E1101945,Payroll Payable,10/31/2023,34448.01,Payroll Clearing Fund,Payroll Payable,A01372079,120000,220800,99682.85
J. F. Drake State CC & TC,E1101945,Payroll Payable,10/31/2023,65234.84,Payroll Clearing Fund,Payroll Payable,A01372079,120000,220900,99682.85
J. F. Drake State CC & TC,E1101946,Payroll Payable,10/31/2023,14936.45,Payroll Clearing Fund,Payroll Payable,A01349869,120000,221400,73336.45
J. F. Drake State CC & TC,E1101946,Payroll Payable,10/31/2023,58400,Payroll Clearing Fund,Payroll Payable,A01349869,120000,221300,73336.45
J. F. Drake State CC & TC,E1101947,Payroll Payable,10/31/2023,2900,Payroll Clearing Fund,Payroll Payable,A00010287,120000,221100,2900
J. F. Drake State CC & TC,E1101948,Payroll Payable,10/31/2023,84538.13,Payroll Clearing Fund,Payroll Payable,A00010231,120000,220200,84538.13
J. F. Drake State CC & TC,E1101949,Payroll Payable,11/2/2023,786.17,Payroll Clearing Fund,Payroll Payable,A00010262,120000,222000,786.17
J. F. Drake State CC & TC,E1101950,Payroll Payable,11/2/2023,17476.95,Payroll Clearing Fund,Payroll Payable,A00010262,120000,222000,17476.95
J. F. Drake State CC & TC,E1101951,Lowe's Company ,11/9/2023,153.77,Unrestricted Shared Services,Maintenance & Repairs  - OOS,A01349933,110100,751100,153.77
J. F. Drake State CC & TC,E1101952,Verizon Wireless ,11/9/2023,668.22,Unrestricted Shared Services,Wireless Phones - UC,A01367890,110100,740800,668.22
J. F. Drake State CC & TC,E1101953,WEX Inc ,11/9/2023,393.06,Unrestricted Shared Services,Gasoline & Oil - Motor Veh - OOS,A00010352,110100,750700,393.06
J. F. Drake State CC & TC,E1101954,WEX Inc ,11/9/2023,68.9,Unrestricted Shared Services,Gasoline & Oil - Motor Veh - OOS,A00010352,110100,750700,68.9
J. F. Drake State CC & TC,E1101955,Regions Bank ,11/13/2023,53.85,Unrestricted Shared Services,Subscriptions - OOS,A01361056,110100,751700,11335.68
J. F. Drake State CC & TC,E1101955,Regions Bank ,11/13/2023,100,Unrestricted Shared Services,Bank Card Fees - PS,A01361056,110100,730400,11335.68
J. F. Drake State CC & TC,E1101955,Regions Bank ,11/13/2023,238.05,Unrestricted Shared Services,Materials and Supplies - MS,A01361056,110100,720500,11335.68
J. F. Drake State CC & TC,E1101955,Regions Bank ,11/13/2023,278.76,Unrestricted Shared Services,Maintenance & Repairs  - OOS,A01361056,110100,751100,11335.68
J. F. Drake State CC & TC,E1101955,Regions Bank ,11/13/2023,620.97,Unrestricted Shared Services,Short-Term Equipment Rentals - OOS,A01361056,110100,751600,11335.68
J. F. Drake State CC & TC,E1101955,Regions Bank ,11/13/2023,900,Unrestricted Shared Services,Memberships - PS,A01361056,110100,731300,11335.68
J. F. Drake State CC & TC,E1101955,Regions Bank ,11/13/2023,1274.46,Unrestricted Shared Services,Lodging - OS,A01361056,110100,715300,11335.68
J. F. Drake State CC & TC,E1101955,Regions Bank ,11/13/2023,1408.08,Unrestricted Shared Services,Registration Fees- IS,A01361056,110100,710700,11335.68
J. F. Drake State CC & TC,E1101955,Regions Bank ,11/13/2023,2990.52,Unrestricted Shared Services,Culinary Consumables,A01361056,110100,720200,11335.68
J. F. Drake State CC & TC,E1101955,Regions Bank ,11/13/2023,3470.99,Unrestricted Shared Services,Internet - UC,A01361056,110100,740400,11335.68
J. F. Drake State CC & TC,E1101956,Payroll Payable,11/15/2023,1139.57,Payroll Clearing Fund,Payroll Payable,A01372079,120000,220800,5222.75
J. F. Drake State CC & TC,E1101956,Payroll Payable,11/15/2023,4083.18,Payroll Clearing Fund,Payroll Payable,A01372079,120000,220900,5222.75
J. F. Drake State CC & TC,E1101957,Payroll Payable,11/15/2023,290.72,Payroll Clearing Fund,Payroll Payable,A00010231,120000,220200,290.72
J. F. Drake State CC & TC,E1101958,State of Alabama ,11/29/2023,566.84,Unrestricted Shared Services,Unclaimed Property - AP,A00010262,110100,211201,566.84
J. F. Drake State CC & TC,E1101959,Payroll Payable,11/30/2023,34260.43,Payroll Clearing Fund,Payroll Payable,A01372079,120000,220800,98740.12
J. F. Drake State CC & TC,E1101959,Payroll Payable,11/30/2023,64479.69,Payroll Clearing Fund,Payroll Payable,A01372079,120000,220900,98740.12
J. F. Drake State CC & TC,E1101960,Lowe's Company ,12/5/2023,653.4,Unrestricted Shared Services,Maintenance & Repairs  - OOS,A01349933,110100,751100,653.4
J. F. Drake State CC & TC,E1101961,Richardson & Deemer Insurance Inc ,12/5/2023,23589.61,Unrestricted Shared Services,Insurance and Bonding - PS,A02435755,110100,730900,23589.61
J. F. Drake State CC & TC,E1101962,Sam's Club ,12/5/2023,76.83,Unrestricted Shared Services,Materials and Supplies - MS,A01349507,110100,720500,428.76
J. F. Drake State CC & TC,E1101962,Sam's Club ,12/5/2023,154.95,Unrestricted Shared Services,Culinary Consumables,A01349507,110100,720200,428.76
J. F. Drake State CC & TC,E1101962,Sam's Club ,12/5/2023,196.98,Unrestricted Admin Cost Allowance,Materials and Supplies - MS,A01349507,110101,720500,428.76
J. F. Drake State CC & TC,E1101963,Verizon Wireless ,12/5/2023,668.22,Unrestricted Shared Services,Wireless Phones - UC,A01367890,110100,740800,668.22
J. F. Drake State CC & TC,E1101964,WEX Inc ,12/5/2023,660.63,Unrestricted Shared Services,Gasoline & Oil - Motor Veh - OOS,A00010352,110100,750700,660.63
J. F. Drake State CC & TC,E1101965,WEX Inc ,12/5/2023,249.66,Unrestricted Shared Services,Gasoline & Oil - Motor Veh - OOS,A00010352,110100,750700,249.66
J. F. Drake State CC & TC,E1101966,Payroll Payable,12/5/2023,294.5,Payroll Clearing Fund,Payroll Payable,A01365311,120000,221100,294.5
J. F. Drake State CC & TC,E1101967,Payroll Payable,12/5/2023,14662.45,Payroll Clearing Fund,Payroll Payable,A01349869,120000,221400,69862.45
J. F. Drake State CC & TC,E1101967,Payroll Payable,12/5/2023,55200,Payroll Clearing Fund,Payroll Payable,A01349869,120000,221300,69862.45
J. F. Drake State CC & TC,E1101968,Payroll Payable,12/5/2023,2900,Payroll Clearing Fund,Payroll Payable,A00010287,120000,221100,2900
J. F. Drake State CC & TC,E1101969,State of Alabama ,12/5/2023,150,Unrestricted Shared Services,Bank Card Fees - PS,A00010262,110100,730400,150
J. F. Drake State CC & TC,E1101970,Payroll Payable,12/5/2023,18424.33,Payroll Clearing Fund,Payroll Payable,A00010262,120000,222000,18424.33
J. F. Drake State CC & TC,E1101971,Payroll Payable,12/5/2023,83160.73,Payroll Clearing Fund,Payroll Payable,A00010231,120000,220200,83160.73
J. F. Drake State CC & TC,E1303169,Sam's Club ,10/3/2023,162.28,Title III (Activity 1),Materials and Supplies - MS,A01349507,211621,720500,162.28
J. F. Drake State CC & TC,E1303170,WEX Inc ,10/3/2023,38.07,Title III (Activity 6),Gasoline & Oil - Motor Veh - OOS,A00010352,211626,750700,368.23
J. F. Drake State CC & TC,E1303170,WEX Inc ,10/3/2023,68.34,Title III (Activity 6),Gasoline & Oil - Motor Veh - OOS,A00010352,211636,750700,368.23
J. F. Drake State CC & TC,E1303170,WEX Inc ,10/3/2023,79.2,Title III (Activity A Institution),Gasoline & Oil - Motor Veh - OOS,A00010352,211627,750700,368.23
J. F. Drake State CC & TC,E1303170,WEX Inc ,10/3/2023,89.9,Title III (Activity A Institution),Gasoline & Oil - Motor Veh - OOS,A00010352,211637,750700,368.23
J. F. Drake State CC & TC,E1303170,WEX Inc ,10/3/2023,92.72,Title III (Activity 1),Gasoline & Oil - Motor Veh - OOS,A00010352,211621,750700,368.23
J. F. Drake State CC & TC,E1303171,WEX Inc ,10/3/2023,18.83,Restricted State Grants Misc,Gasoline & Oil - Motor Veh - OOS,A00010352,227999,750700,18.83
J. F. Drake State CC & TC,E1303172,Lowe's Company ,10/6/2023,741,Title III (Activity 4),Materials and Supplies - MS,A01349933,211634,720500,5618.55
J. F. Drake State CC & TC,E1303172,Lowe's Company ,10/6/2023,4877.55,Carl Perkins Career & Tech X1-X2,Materials and Supplies - MS,A01349933,211431,720500,5618.55
J. F. Drake State CC & TC,E1303173,Regions Bank ,10/9/2023,17.05,Equip-Supt Patient Care Tech Pgm,Materials and Supplies - MS,A01361056,222630,720500,12354.39
J. F. Drake State CC & TC,E1303173,Regions Bank ,10/9/2023,41.65,Restricted State Grants Misc,Postage - OOS,A01361056,227999,751200,12354.39
J. F. Drake State CC & TC,E1303173,Regions Bank ,10/9/2023,72.15,NASA MUREP Grant,Culinary Consumables,A01361056,217212,720200,12354.39
J. F. Drake State CC & TC,E1303173,Regions Bank ,10/9/2023,126.98,Glenn Family Student Support Fund,Materials and Supplies - MS,A01361056,240930,720500,12354.39
J. F. Drake State CC & TC,E1303173,Regions Bank ,10/9/2023,149.33,Title III (Activity 6),Other Travel Expenses - OS,A01361056,211626,715600,12354.39
J. F. Drake State CC & TC,E1303173,Regions Bank ,10/9/2023,190.87,Strada Education Network,Lodging - OS,A01361056,240830,715300,12354.39
J. F. Drake State CC & TC,E1303173,Regions Bank ,10/9/2023,361.02,Title III (Activity 1),Registration Fees- IS,A01361056,211621,710700,12354.39
J. F. Drake State CC & TC,E1303173,Regions Bank ,10/9/2023,650,Title III (Activity 5),Registration Fees- OS,A01361056,211625,715500,12354.39
J. F. Drake State CC & TC,E1303173,Regions Bank ,10/9/2023,1000,Title III (Activity 6),Professional Development - PS,A01361056,211636,731700,12354.39
J. F. Drake State CC & TC,E1303173,Regions Bank ,10/9/2023,1015.58,Title III (Activity 6),Lodging - OS,A01361056,211626,715300,12354.39
J. F. Drake State CC & TC,E1303173,Regions Bank ,10/9/2023,1060,Title III (Activity 6),Registration Fees- OS,A01361056,211626,715500,12354.39
J. F. Drake State CC & TC,E1303173,Regions Bank ,10/9/2023,1213.98,Restricted State Grants Misc,Materials and Supplies - MS,A01361056,227999,720500,12354.39
J. F. Drake State CC & TC,E1303173,Regions Bank ,10/9/2023,1825,Title III (Activity 1),Registration Fees- OS,A01361056,211631,715500,12354.39
J. F. Drake State CC & TC,E1303173,Regions Bank ,10/9/2023,2064.22,Title III (Activity 3),Maintenance & Repairs  - OOS,A01361056,211623,751100,12354.39
J. F. Drake State CC & TC,E1303173,Regions Bank ,10/9/2023,2566.56,Title III (Activity 1),Lodging - OS,A01361056,211631,715300,12354.39
J. F. Drake State CC & TC,E1303174,Lowe's Company ,11/9/2023,2326.03,Spcl Pops Ind Workforce Initiatives,Materials and Supplies - MS,A01349933,222611,720500,2326.03
J. F. Drake State CC & TC,E1303175,WEX Inc ,11/9/2023,108.8,Title III (Activity 6),Gasoline & Oil - Motor Veh - OOS,A00010352,211636,750700,402.58
J. F. Drake State CC & TC,E1303175,WEX Inc ,11/9/2023,116.39,FY23 Stand-Alone LPN Grant,Gasoline & Oil - Motor Veh - OOS,A00010352,229130,750700,402.58
J. F. Drake State CC & TC,E1303175,WEX Inc ,11/9/2023,177.39,Title III (Activity 1),Gasoline & Oil - Motor Veh - OOS,A00010352,211631,750700,402.58
J. F. Drake State CC & TC,E1303176,Regions Bank ,11/13/2023,27,Title III (Activity A Institution),Registration Fees- IS,A01361056,211627,710700,7986.96
J. F. Drake State CC & TC,E1303176,Regions Bank ,11/13/2023,66.06,Restricted State Grants Misc,Culinary Consumables,A01361056,227999,720200,7986.96
J. F. Drake State CC & TC,E1303176,Regions Bank ,11/13/2023,100,Gas & Water Operations Scholarship,Advertising & Promotions - OOS,A01361056,240230,750100,7986.96
J. F. Drake State CC & TC,E1303176,Regions Bank ,11/13/2023,114,Title III (Activity 6),Other Travel Expenses - OS,A01361056,211626,715600,7986.96
J. F. Drake State CC & TC,E1303176,Regions Bank ,11/13/2023,187.64,Restricted State Grants Misc,Materials and Supplies - MS,A01361056,227999,720500,7986.96
J. F. Drake State CC & TC,E1303176,Regions Bank ,11/13/2023,212.03,Title III (Activity 6),Other Travel Expenses - OS,A01361056,211636,715600,7986.96
J. F. Drake State CC & TC,E1303176,Regions Bank ,11/13/2023,236.75,Glenn Family Student Support Fund,Materials and Supplies - MS,A01361056,240930,720500,7986.96
J. F. Drake State CC & TC,E1303176,Regions Bank ,11/13/2023,521.39,Title III (Activity 1),Commercial Transportation - OS,A01361056,211631,715100,7986.96
J. F. Drake State CC & TC,E1303176,Regions Bank ,11/13/2023,529.84,Title III (Activity 6),Lodging - IS,A01361056,211636,710300,7986.96
J. F. Drake State CC & TC,E1303176,Regions Bank ,11/13/2023,592.4,Title III (Activity 6),Commercial Transportation - OS,A01361056,211636,715100,7986.96
J. F. Drake State CC & TC,E1303176,Regions Bank ,11/13/2023,698.72,FY23 Stand-Alone LPN Grant,Professional Development - PS,A01361056,229130,731700,7986.96
J. F. Drake State CC & TC,E1303176,Regions Bank ,11/13/2023,900,Title III (Activity 6),Registration Fees- IS,A01361056,211636,710700,7986.96
J. F. Drake State CC & TC,E1303176,Regions Bank ,11/13/2023,1761.72,Title III (Activity 6),Lodging - OS,A01361056,211626,715300,7986.96
J. F. Drake State CC & TC,E1303176,Regions Bank ,11/13/2023,2039.41,Title III (Activity 6),Lodging - OS,A01361056,211636,715300,7986.96
J. F. Drake State CC & TC,E1303177,Sam's Club ,12/5/2023,26.76,Gas & Water Operations Scholarship,Culinary Consumables,A01349507,240230,720200,104.66
J. F. Drake State CC & TC,E1303177,Sam's Club ,12/5/2023,34.38,Annie E Casey Foundation,Materials and Supplies - MS,A01349507,240032,720500,104.66
J. F. Drake State CC & TC,E1303177,Sam's Club ,12/5/2023,43.52,Annie E Casey Foundation,Culinary Consumables,A01349507,240032,720200,104.66
J. F. Drake State CC & TC,E1303178,WEX Inc ,12/5/2023,25.86,FY23 Stand-Alone LPN Grant,Gasoline & Oil - Motor Veh - OOS,A00010352,229130,750700,264.47
J. F. Drake State CC & TC,E1303178,WEX Inc ,12/5/2023,42.59,Title III (Activity 2),Gasoline & Oil - Motor Veh - OOS,A00010352,211632,750700,264.47
J. F. Drake State CC & TC,E1303178,WEX Inc ,12/5/2023,196.02,Title III (Activity 6),Gasoline & Oil - Motor Veh - OOS,A00010352,211636,750700,264.47
